Workbook

Sheet CoverSheet
A5: Electricity Distribution Business
A6: Price-Quality Regulation 1 April 2025 Reset
A7: Existing asset depreciation model
A8: May 2024 draft determination
A16: Published 29 May 2024 v1

Sheet TOC & Instructions
A1: Table of Contents and instructions, as given to EDBs as part of the s53ZD notice to EDBs, 20 March 2024
A4: Worksheet Name | B4: Description | D4: Instructions
A5: Attachment B | B5: This worksheet summarises the requirement for information required for the calculation of depreciation of existing assets as set out in Schedule B, of the Section 53ZD Notice to EDBs issued on 20 March 2024. It includes definitions for the terms used in the table in the 'Template' worksheet.
A6: Template | B6: This worksheet collects required information for compliance with the change to the IM determination to require EDBs, when forecasting depreciation for a DPP period, to depreciate existing assets using the weighted average value of the remaining asset life for those assets, as required by of the Section 53ZD Notice to EDBs issued on 20 March 2024. | D6: For each of the disclosure years 2024, 2025, 2026, 2027, 2028, 2029, and 2030, insert the specified information, calculated in accordance with the definitions provided in clause B1 of the Section 53ZD notice issued on 20 March 2023. Please provide this information in aggregate (not by asset class), in the form requested in the "Template" tab of this workbook. If you are unable to provide any of this information, provide reasons in the space provided in the "Template" tab of this workbook.
D7: Step 1: Base year calculations (disclosure year 2024): Provide the following information, calculated in accordance with Part 2 the IM determination (“Input Methodologies for Information Disclosure”) for the 2024 disclosure year. References to "ID Schedule 4" refer to Schedule 4 of the "EDB Information Disclosure Requirements Information Templates Schedules 1-10 TIDR 2024" (29 February 2024), available on our website at: https://comcom.govt.nz/__data/assets/excel_doc/0033/344877/EDB-Information-Disclosure-Requirements-Information-Templates-Schedules-1-10-TIDR-2024.xlsx Cell B5: aggregate opening value for existing assets, which is equal to the ‘Total opening RAB value’ provided in line 10 of ID Schedule 4. Cell B6: depreciation for existing assets, which is equal to ‘Total depreciation’ provided in line 12 of ID Schedule 4. Cell B7: revaluation for existing assets, which is equal to ‘Total revaluations’, provided in line 14 of ID Schedule 4, using the revaluation rate provided in Row 13 of the "Template" tab of this workbook, ie revaluation rate = 3.80%. Cell B8: aggregate value of disposed assets = 'Asset disposals', line 18 of ID Schedule 4. Cell B9: no input required; forecast aggregate closing RAB value for existing assets will populate automatically.
D8: Step 2: Forecast calculations (disclosure year 2025 to 2030): Provide the following forecast information: Row 5: no input required; forecast aggregate opening RAB value for existing assets will populate automatically. Row 6: provide the forecast sum of depreciation for existing assets, calculated in accordance with cl 4.2.2(2)(a)(ii) of the IM determination, where 'remaining asset life for existing assets' means the value determined in accordance with the formula in cl 4.2.2(3)(a)(i) of the IM determination, ie: aggregate opening RAB value for existing assets for the disclosure year ÷ the sum of depreciation for existing assets for the disclosure year. Row 7: provide the forecast revaluation for existing assets, calculated in accordance with clause 4.2.3(2)(a) of the IM determination. For this purpose, use the revaluation rate provided in Row 13 of the "Template" tab of this workbook. Row 8: where you have a forecast of assets to be disposed of in the disclosure year in question, provide the forecast aggregate value of disposed assets in Row 8. Note, this is equal to the portion of the forecast aggregate opening RAB value for existing assets relating to assets forecast to be disposed of for the disclosure year in question plus the total depreciation on disposed assets for the disclosure year in question. Row 9: no input required; forecast aggregate closing RAB value for existing assets will populate automatically.

Sheet AttachmentB
A1: Attachment B: Supporting information Information required for the calculation of depreciation of existing assets
A2: This Excel workbook is Attachment B referred to in the Notice issued under s 53ZD of the Commerce Act to all non-exempt EDBs on 20 March 2024.
A3: Under the Notice, we require each non-exempt EDB to provide us with the information specified in Schedule B.
A4: Note: Non-exempt EDBs must use the 'Template' worksheet to respond to clause 8 of the Notice.
A6: Definition of terms
A8: Term | B8: Definitions /Explanation
A9: Act | B9: Act means the Commerce Act 1986
A10: Aggregate opening RAB value for existing assets | B10: Aggregate opening RAB value for existing assets means the amount determined in accordance with clause 4.2.1(2) of the IM determination
A11: Aggregate closing RAB value for existing assets | B11: Aggregate closing RAB value for existing assets means the amount determined in accordance with clause 4.2.1(3) of the IM determination
A12: Base year | B12: Base year means the disclosure year 2024
A13: Depreciation | B13: Depreciation has the same meaning as defined in clause 4.2.2(2)(a)(ii) of the IM determination
A14: Disclosure year | B14: Disclosure year has the same meaning as defined in the ID determination
A15: Disposed asset | B15: Disposed asset means an asset that, in relation to a disclosure year, is forecast to be sold or transferred.
A16: DPP | B16: DPP means default price-quality path
A17: EDB | B17: EDB has the same meaning as defined in the IM determination
A18: Electricity distribution services | B18: Electricity distribution services has the same meaning as defined in the IM determination
A19: Existing assets | B19: Existing assets means assets of an EDB for which an aggregate closing RAB value for existing assets is calculated for the base year
A20: Forecast aggregate value of disposed assets | B20: Forecast aggregate value of disposed assets means the value of assets forecast to be disposed of by an EDB in the disclosure year in question, and is equal to the portion of the forecast aggregate opening RAB value for existing assets relating to assets forecast to be disposed of for the disclosure year in question plus the total depreciation on disposed assets for the disclosure year in question.
A21: Forecast revaluation for existing assets | B21: Forecast revaluation for existing assets means the value determined in accordance with clause 4.2.3(2)(a) of the IM determination
A22: ID determination | B22: ID determination means the Electricity Distribution Services Information Disclosure Determination 2012 [2012] NZCC 22, including amendments in effect at the date of the Notice
A23: IM determination | B23: IM determination means the Electricity Distribution Services Input Methodologies Determination 2012 [2012] NZCC 26, including amendments in effect at the date of the Notice
A24: Non-exempt EDB | B24: Non-exempt EDB means an EDB that is not exempt from default/customised price-quality regulation under section 54G of the Act

Sheet Description
A1: Description
B2: General description
B3: 1 | C3: This model calculates the depreciation of existing assets (as "existing assets" are defined in the input methodologies) based on an
C4: asset-by-asset calculation provided by EDBs in response to a s53ZD request.
B5: 2 | C5: This model should not be used for any other purposes.
B6: High level calculation steps
B7: 1 | C7: The main calculation steps are set out in Rows 30 to 45.
B8: 2 | C8: There are data integrity checks at Rows 31 and 32 which Electricity Invercargill and OtagoNet have failed. The differences between the calculated closing RAB and the opening RAB of the following year are significant, therefore, for the purposes of the draft decision, the existing asset depreciation based on the DPP3 methodology i.e. the methodology prior to the 2023 IM review) has been applied for these EDBs.
B9: 3 | C9: The rightmost 16 sheets are the 'template' sheets as provided by each of the non-exempt EDBs in response to the s53ZD request.
B10: 4 | C10: The Main sheet contains the few other inputs. There is no separate Inputs sheet.
B12: Notes
B14: Location of text describing this workbook
B15: 1 | C15: This work book is described in:
C16: ● This Description sheet
C17: ● at numerous cell notes in Column B on the Main sheet
C18: ● in the red bold text at Rows 72 & 73 on the Main sheet
B20: Structure of this workbook
B22: 1 | C22: The rightmost 16 sheets are the 'template' sheets as provided by each of the non-exempt EDBs in response to the s53ZD request.
B23: 2 | C23: The sheets are each named with a three letter code which indicates which EDB provided the response.
B24: 3 | C24: The AttachmentB sheet is a sheet that was included in our s53ZD information request.
B25: 4 | C25: Almost all the calculations are done on the Main sheet.
B27: Structure of the Main sheet
B28: 1 | C28: The Main sheet starts with Rows 4 to 6 simply drawing in the EDBs' 2024 AMP forecast of 2024 capex, i.e. the value of 2023/24 additional assets. This AMP data was the most up-to-date information on the 2024 additional assets.
B29: 2 | C29: Down to Row 13 is where the "focus EDB" is selected. Cell C9 on the Main sheet can be used to select the name of the EDB that is to have the focus.
B30: 3 | C30: Down to Row 56 is where the bulk of the calculations are done to determine the depreciation of the assets covered by the s53ZD responses, i.e. the assets in the 2024 opening RAB.
B31: 4 | C31: Beyond Row 56 down to Row64 are the calculation of depreciation of the additional assets. The modelling assumption for these calculations is that as these are all brand new in the base year, then none of them will reach their scheduled life during DPP4. The simple DPP3 depreciation methodology can therefore be used.
B32: 5 | C32: Rows 66 to 71 contain the consolidation of depreciation data to provide the total depreciation of all assets.
C34: While the broad structure of the Main sheet is covered above, the detail is covered by the numerous
C35: cell notes in Column C.
B37: Separation of existing assets in the 2024 opening RAB and 2024/25 additional assets
B38: 1 | C38: The IM defines "existing assets" as "assets of an EDB for which an aggregate closing RAB value for existing assets is calculated for the base year". 2023/24 is the DPP4 base year.
B39: 2 | C39: This workbook calculates data for existing assets as two separate groups of assets:
C40: ● assets that existed in opening RAB of 2023/24
C41: ● assets that were additional assets in 2023/24
B42: 3 | C42: The s53ZD request effectively only requested data on the first of these groups.
B44: Suggested approach to reading this workbook
B45: 1 | C45: Use a two screen display if possible, displaying this Description sheet on one and the 'focus' sheet on the other.
B46: 2 | C46: Select the 'focus' sheet at Main!C9 to display the response to the s53ZD request.
B47: 3 | C47: Note that the response for Alpine is displayed.
B48: 4 | C48: Note that there is a + and - sign in the 'group' control at Row 28 to show or hide the EDB's comments on any information that cannot be supplied.
B49: 5 | C49: Note the comments made by Alpine at Rows 17 to 25 on the 'focus' sheet.
B50: 6 | C50: Hide the grouped rows.
B51: 7 | C51: Note that Row 29 shows the remaining life for each year.
B52: 8 | C52: Note that Row 30 shows the year-on-year change in the remaining life. The year-on-year change in the remaining life is the current key parameter used to consider the feasibility of an EDB's depreciation forecast. The chart that is visible on the 'focus' sheet shows the year-on-year change.
B53: 9 | C53: Note the 'Next EDB' macro button at cell C9 on the Main sheet. This button can be used to cycle through all the EDBs, with a view to considering whether each shows a feasible result.
B54: 10 | C54: Set cell B11 on the 'admin' sheet to 1 to make Alpine the focus EDB. Then select the 'focus' sheet.
B55: 11 | C55: The year-on-year changes highlighted in yellow in Row 30 are the most instructive. The minimum and maximum values in this range are shown in the box with a black border at J29.
B56: 12 | C56: Cycling through the 16 EDBs will show the results for each EDB. The following are noteworthy:
C57: Invercargill: at Row 34 there is nil change in remaining life for Invercargill throughout all DPP4.
C58: Firstlight: the change each year is close to 1, being in the range 1.00124 to 1.00274.
C59: OtagoNet: Very similar to Invercargill. All close to nil, being from -0.0000004 to 0.0000014
C60: Unison: changes are in a tight range, fairly close to 1, being from 1.035 to 1.039.
B61: 13 | C61: Cycling again through the 16 EDBs will show the results at Rows 31 and 32
C62: The following are noteworthy:
C63: All EDBs except Invercargill and OtagoNet: Row 31 indicates that
C64: closing RAB is, as expected, opening RAB - depreciation + revaluations - disposals.
C65: Invercargill and OtagoNet: Note that the template used by Invercargill
C66: and OtagoNet is different from the template of other EDBs.
B67: 14 | C67: The results examined so far indicate that 4 EDBs have infeasible results, being:
C68: a) Invercargill
C69: b) Firstlight
C70: c) OtagoNet
C71: d) Unison
B72: 15 | C72: Further examination of the charts may indicate reasonableness or otherwise of other EDBs' data.
B74: Model suite
B75: 1 | C75: Follow the link "Model map – EDB DPP draft determination – 29 May 2024" on the Commission's EDB 2025-2030 default price-quality path determination web page for a graphical depiction of interconnections between the models and data sources.

Sheet Main
B1: Admin: managing the process for chosing the EDB on which to focus
B2: All $ amounts are in '000 NZD.
B3: Inputs
B4: 2024 capital expenditure forecast (nominal) | D4: Alpine Energy | E4: Aurora Energy | F4: EA Networks | G4: Electricity Invercargill | H4: Firstlight Network | I4: Horizon Energy | J4: Nelson Electricity | K4: Network Tasman | L4: Orion NZ | M4: OtagoNet | N4: Powerco | O4: The Lines Company | P4: Top Energy | Q4: Unison Networks | R4: Vector Lines | S4: Wellington Electricity | T4: Dummy
B5: 2024 | D5: alp | E5: aur | F5: ean | G5: inv | H5: fln | I5: hor | J5: nel | K5: tas | L5: ori | M5: ojv | N5: pco | O5: tlc | P5: top | Q5: uni | R5: vct | S5: wel | T5: dum
B6: 2024 capital expenditure forecast | D6: =TRANSPOSE([1]Calculation!$P$304:$P$319) -> 22720 | E6: 88605.44834 | F6: 14318.55127 | G6: 6017 | H6: 14996.33424 | I6: 9443.572367 | J6: 1892 | K6: 15022 | L6: 135507 | M6: 20446.43045 | N6: 255307.4 | O6: 19438.08 | P6: 20720 | Q6: 91746.6759 | R6: 358149 | S6: 53806.66692 | T6: 77777
B8: Selection of focus EDB
B9: Select the focus EDB (dropdown at C9) | C9: Vector Lines
B10: Column number of focus EDB | C10: =MATCH(C9,D4:S4,0) -> 15
A11: Row number | B11: Focus EDB three letter abbreviation | C11: =INDEX(D5:T5,1,C10) -> vct
B12: Factor (1 or 1000) by which s53ZD data is to be scaled | C12: =IF(OR(C11="alp",C11="ean",C11="hor",C11="nel",C11="tas",C11="uni"),1,1000) -> 1000
B13: Rem life for 2024 capex assets 31-3-25 | C13: 44 | D13: years
D15: B | E15: C | F15: D | G15: E | H15: F | I15: G | J15: H
B16: s53ZD data for the focus EDB, adjusted for consistency of $000s, +/-, allocation adjustment and row order
B17: for the disclosure year ending 31 March | D17: 2024 | E17: 2025 | F17: 2026 | G17: 2027 | H17: 2028 | I17: 2029 | J17: 2030 | K17: 2031
A18: 5 | B18: Forecast aggregate opening RAB value for existing assets | D18: =INDIRECT($C$11 & "!" & D$15 & $A18)/$C$12 -> 3891832.614 | E18: =INDIRECT($C$11 & "!" & E$15 & $A18)/$C$12 -> 3874339.152 | F18: =INDIRECT($C$11 & "!" & F$15 & $A18)/$C$12 -> 3810306.715 | G18: =INDIRECT($C$11 & "!" & G$15 & $A18)/$C$12 -> 3726433.143 | H18: =INDIRECT($C$11 & "!" & H$15 & $A18)/$C$12 -> 3645766.663 | I18: =INDIRECT($C$11 & "!" & I$15 & $A18)/$C$12 -> 3565129.108 | J18: =INDIRECT($C$11 & "!" & J$15 & $A18)/$C$12 -> 3483167.089 | K18: =J18-J19+J20-J21 -> 3401145.918
A19: 6 | B19: Forecast sum of depreciation for existing assets | D19: =IF($C$11="vct",-1,1)*INDIRECT($C$11 & "!" & D$15 & $A19)/$C$12 -> 155628.6341 | E19: =IF($C$11="vct",-1,1)*INDIRECT($C$11 & "!" & E$15 & $A19)/$C$12 -> 153610.6002 | F19: =IF($C$11="vct",-1,1)*INDIRECT($C$11 & "!" & F$15 & $A19)/$C$12 -> 149027.0733 | G19: =IF($C$11="vct",-1,1)*INDIRECT($C$11 & "!" & G$15 & $A19)/$C$12 -> 144211.8639 | H19: =IF($C$11="vct",-1,1)*INDIRECT($C$11 & "!" & H$15 & $A19)/$C$12 -> 142585.8806 | I19: =IF($C$11="vct",-1,1)*INDIRECT($C$11 & "!" & I$15 & $A19)/$C$12 -> 142303.8243 | J19: =IF($C$11="vct",-1,1)*INDIRECT($C$11 & "!" & J$15 & $A19)/$C$12 -> 140711.7399
A20: =IF(OR(C11="inv",C11="ojv"),9,7) -> 7 | B20: Forecast revaluation for existing assets | D20: =INDIRECT($C$11 & "!" & D$15 & $A20)/$C$12 -> 147258.8995 | E20: =INDIRECT($C$11 & "!" & E$15 & $A20)/$C$12 -> 100282.1787 | F20: =INDIRECT($C$11 & "!" & F$15 & $A20)/$C$12 -> 75857.47674 | G20: =INDIRECT($C$11 & "!" & G$15 & $A20)/$C$12 -> 74249.3688 | H20: =INDIRECT($C$11 & "!" & H$15 & $A20)/$C$12 -> 72652.31395 | I20: =INDIRECT($C$11 & "!" & I$15 & $A20)/$C$12 -> 71045.80133 | J20: =INDIRECT($C$11 & "!" & J$15 & $A20)/$C$12 -> 69394.55114
A21: 8 | B21: Forecast aggregate value of disposed assets | D21: =IF($C$11="vct",-1,1)*INDIRECT($C$11 & "!" & D$15 & $A21)/$C$12 -> 10703.98214 | E21: =IF($C$11="vct",-1,1)*INDIRECT($C$11 & "!" & E$15 & $A21)/$C$12 -> 10704.01511 | F21: =IF($C$11="vct",-1,1)*INDIRECT($C$11 & "!" & F$15 & $A21)/$C$12 -> 10703.97595 | G21: =IF($C$11="vct",-1,1)*INDIRECT($C$11 & "!" & G$15 & $A21)/$C$12 -> 10703.98444 | H21: =IF($C$11="vct",-1,1)*INDIRECT($C$11 & "!" & H$15 & $A21)/$C$12 -> 10703.9882 | I21: =IF($C$11="vct",-1,1)*INDIRECT($C$11 & "!" & I$15 & $A21)/$C$12 -> 10703.99613 | J21: =IF($C$11="vct",-1,1)*INDIRECT($C$11 & "!" & J$15 & $A21)/$C$12 -> 10703.98274
B22: Forecast aggregated value of allocation adjustments | D22: =IF(C11="vct",vct!B9,0)/$C$12 -> 1580.254015 | E22: 0 | F22: 0 | G22: 0 | H22: 0 | I22: 0 | J22: 0
A23: =IF(OR(C11="inv",C11="ojv"),"n/a",IF(C11="vct",21,9)) -> 21 | B23: Forecast aggregate closing RAB value for existing assets | D23: =IF(OR($C$11="inv",$C$11="ojv"),E18,IF($C$11="vct",INDIRECT($C$11 & "!" & D$15 & 10)/$C$12,INDIRECT($C$11 & "!" & D$15 & $A23)/$C$12)) -> 3874339.152 | E23: =IF(OR($C$11="inv",$C$11="ojv"),F18,IF($C$11="vct",INDIRECT($C$11 & "!" & E$15 & 10)/$C$12,INDIRECT($C$11 & "!" & E$15 & $A23)/$C$12)) -> 3810306.715 | F23: =IF(OR($C$11="inv",$C$11="ojv"),G18,IF($C$11="vct",INDIRECT($C$11 & "!" & F$15 & 10)/$C$12,INDIRECT($C$11 & "!" & F$15 & $A23)/$C$12)) -> 3726433.143 | G23: =IF(OR($C$11="inv",$C$11="ojv"),H18,IF($C$11="vct",INDIRECT($C$11 & "!" & G$15 & 10)/$C$12,INDIRECT($C$11 & "!" & G$15 & $A23)/$C$12)) -> 3645766.663 | H23: =IF(OR($C$11="inv",$C$11="ojv"),I18,IF($C$11="vct",INDIRECT($C$11 & "!" & H$15 & 10)/$C$12,INDIRECT($C$11 & "!" & H$15 & $A23)/$C$12)) -> 3565129.108 | I23: =IF(OR($C$11="inv",$C$11="ojv"),J18,IF($C$11="vct",INDIRECT($C$11 & "!" & I$15 & 10)/$C$12,INDIRECT($C$11 & "!" & I$15 & $A23)/$C$12)) -> 3483167.089 | J23: =IF(OR($C$11="inv",$C$11="ojv"),K18,IF($C$11="vct",INDIRECT($C$11 & "!" & J$15 & 10)/$C$12,INDIRECT($C$11 & "!" & J$15 & $A23)/$C$12)) -> 3401145.918
B25: Revaluation data | D25: 2024 | E25: 2025 | F25: 2026 | G25: 2027 | H25: 2028 | I25: 2029 | J25: 2030
B26: Revaluation rate used for s53ZD | D26: =alp!B13 -> 0.038 | E26: =alp!C13 -> 0.026 | F26: =alp!D13 -> 0.02 | G26: =alp!E13 -> 0.02 | H26: =alp!F13 -> 0.02 | I26: =alp!G13 -> 0.02 | J26: =alp!H13 -> 0.02
B27: Revaluation rate updated from CPI model | D27: =[2]Output!I8 -> 0.04022988506 | E27: =[2]Output!J8 -> 0.026 | F27: =[2]Output!K8 -> 0.02 | G27: =[2]Output!L8 -> 0.02 | H27: =[2]Output!M8 -> 0.02 | I27: =[2]Output!N8 -> 0.02 | J27: =[2]Output!O8 -> 0.02
B29: Calculations | D29: 2024 | E29: 2025 | F29: 2026 | G29: 2027 | H29: 2028 | I29: 2029 | J29: 2030
B30: Closing RAB by formula | D30: =D18-D19+D20-D21+D22 -> 3874339.152 | E30: =E18-E19+E20-E21+E22 -> 3810306.715 | F30: 3726433.143 | G30: 3645766.663 | H30: 3565129.108 | I30: 3483167.089 | J30: 3401145.918
B31: Data integrity check: Closing RAB is NOT formula compliant? | C31: =C11 -> vct | D31: =D23<>D30 -> FALSE | E31: =E23<>E30 -> FALSE | F31: FALSE | G31: FALSE | H31: FALSE | I31: FALSE | J31: FALSE
B32: Data integrity check: opening RAB = previous year closing RAB? | E32: =E18=D23 -> TRUE | F32: =F18=E23 -> TRUE | G32: TRUE | H32: TRUE | I32: TRUE | J32: TRUE
B33: Data integrity check: implicit revaluation rate in s53ZD returns | D33: =D20/D18 -> 0.03783793244 | E33: =E20/E18 -> 0.02588368616 | F33: 0.01990849619 | G33: 0.01992505057 | H33: 0.01992785624 | I33: 0.01992797432 | J33: 0.01992283154
B34: Remaining life per s52ZD | D34: =D18/D19 -> 25.00717582 | E34: 25.22182158 | F34: 25.56788261 | G34: 25.83999014 | H34: 25.56891782 | I34: 25.05293955 | J34: 24.75391956
B35: Remaining life per DPP3 methodology | D35: =D34 -> 25.00717582 | E35: =D35-1 -> 24.00717582 | F35: =E35-1 -> 23.00717582 | G35: 22.00717582 | H35: 21.00717582 | I35: 20.00717582 | J35: 19.00717582
B36: Remaining life applied | D36: =IF(OR($C$11="inv",$C$11="ojv"),D35,D34) -> 25.00717582 | E36: 25.22182158 | F36: 25.56788261 | G36: 25.83999014 | H36: 25.56891782 | I36: 25.05293955 | J36: 24.75391956
B38: For assets existing at 31-3-23, values, depreciation etc, adjusted for CPI and using DPP3 depreciation methodology for all EDBs | M38: =EDBname &": s53ZD and DPP3 remaining life" -> Vector Lines: s53ZD and DPP3 remaining life
B39: for the disclosure year ending 31 March | D39: 2024 | E39: 2025 | F39: 2026 | G39: 2027 | H39: 2028 | I39: 2029 | J39: 2030
B40: Forecast aggregate opening RAB value for existing assets (6 rows down). | D40: =D18 -> 3891832.614 | E40: =D45 -> 3883648.231 | F40: =E45 -> 3812148.762 | G40: 3711993.858 | H40: 3606857.773 | I40: 3496594.478 | J40: 3381055.353
B41: Forecast sum of depreciation for existing assets | D41: =D40/D35 -> 155628.6341 | E41: =E40/E35 -> 161770.3082 | F41: 165693.9031 | G41: 168671.9772 | H41: 171696.4624 | I41: 174767.0191 | J41: 177883.0998
B42: Forecast revaluation for existing assets | D42: =D27*D40 -> 156567.9787 | E42: 100974.854 | F42: 76242.97523 | G42: 74239.87716 | H42: 72137.15547 | I42: 69931.88956 | J42: 67621.10705
B43: Forecast aggregate value of disposed assets | D43: =D21 -> 10703.98214 | E43: 10704.01511 | F43: 10703.97595 | G43: 10703.98444 | H43: 10703.9882 | I43: 10703.99613 | J43: 10703.98274
B44: Forecast aggregated value of allocation adjustments | D44: 1580.254015 | E44: 0 | F44: 0 | G44: 0 | H44: 0 | I44: 0 | J44: 0
B45: Forecast aggregate closing RAB value for existing assets | D45: =D40-D41+D42-D43+D44 -> 3883648.231 | E45: =E40-E41+E42-E43+E44 -> 3812148.762 | F45: 3711993.858 | G45: 3606857.773 | H45: 3496594.478 | I45: 3381055.353 | J45: 3260089.377
B47: asset values, depreciation etc, adjusted for CPI and inv & ojv depreciation methodology
B49: For assets existing at 31-3-23, values, depreciation etc, adjusted for CPI and using s53ZD depreciation except for inv and ojv for which DPP3 depreciation methodology used
B50: for the disclosure year ending 31 March | D50: 2024 | E50: 2025 | F50: 2026 | G50: 2027 | H50: 2028 | I50: 2029 | J50: 2030
B51: Forecast aggregate opening RAB value for existing assets | D51: =D18 -> 3891832.614 | E51: =D56 -> 3883648.231 | F51: =E56 -> 3819939.381 | G51: 3736230.371 | H51: 3655659.98 | I51: 3575096.384 | J51: 3493192.642
B52: Forecast sum of depreciation for existing assets | D52: =D51/D36 -> 155628.6341 | E52: 153979.6885 | F52: 149403.8219 | G52: 144591.0138 | H52: 142972.8081 | I52: 142701.6728 | J52: 141116.7486
B53: Forecast revaluation for existing assets | D53: =D27*D51 -> 156567.9787 | E53: 100974.854 | F53: 76398.78763 | G53: 74724.60742 | H53: 73113.19961 | I53: 71501.92767 | J53: 69863.85285
B54: Forecast aggregate value of disposed assets | D54: =D21 -> 10703.98214 | E54: 10704.01511 | F54: 10703.97595 | G54: 10703.98444 | H54: 10703.9882 | I54: 10703.99613 | J54: 10703.98274
B55: Forecast aggregated value of allocation adjustments | D55: =D22 -> 1580.254015 | E55: =E22 -> 0 | F55: 0 | G55: 0 | H55: 0 | I55: 0 | J55: 0
B56: Forecast aggregate closing RAB value for existing assets | D56: =D51-D52+D53-D54+D55 -> 3883648.231 | E56: =E51-E52+E53-E54+E55 -> 3819939.381 | F56: 3736230.371 | G56: 3655659.98 | H56: 3575096.384 | I56: 3493192.642 | J56: 3411235.764
B58: Value of additional assets
B59: 2024 forecast capital expenditure | C59: =INDEX(D6:T6,1,C10) -> 358149 | D59: 2024 | E59: 2025 | F59: 2026 | G59: 2027 | H59: 2028 | I59: 2029 | J59: 2030
B60: opening RAB value for 2024 additional assets | D60: =C59 -> 358149 | E60: =D64 -> 364417.5431 | F60: =E64 -> 365417.5726 | G60: 364025.5057 | H60: 362427.3449 | I60: 360615.2082 | J60: 358580.9686
B61: rem life for 2024 additional assets | D61: =C13 -> 44 | E61: =D61-1 -> 43 | F61: =E61-1 -> 42 | G61: 41 | H61: 40 | I61: 39 | J61: 38
B62: depreciation of 2024 additional assets | D62: =D60/D61 -> 8139.75 | E62: =E60/E61 -> 8474.826584 | F62: 8700.418396 | G62: 8878.670871 | H62: 9060.683624 | I62: 9246.5438 | J62: 9436.341278
B63: revaluation of 2024 additional assets | D63: =D60*D27 -> 14408.2931 | E63: 9474.856121 | F63: 7308.351453 | G63: 7280.510114 | H63: 7248.546899 | I63: 7212.304164 | J63: 7171.619372
B64: closing RAB value for 2024 additional assets | D64: =D60-D62+D63 -> 364417.5431 | E64: =E60-E62+E63 -> 365417.5726 | F64: =F60-F62+F63 -> 364025.5057 | G64: 362427.3449 | H64: 360615.2082 | I64: 358580.9686 | J64: 356316.2467
B66: Consolidation of depreciation of both assets existing at 31-3-23 and 2024 additional assets
B67: Sum of s53ZD depreciation for assets existing at 31-3-2023 | D67: =D52 -> 155628.6341 | E67: =E52 -> 153979.6885 | F67: 149403.8219 | G67: 144591.0138 | H67: 142972.8081 | I67: 142701.6728 | J67: 141116.7486
B68: Sum of DPP3 depreciation for assets existing at 31-3-2023 | D68: =D41 -> 155628.6341 | E68: =E41 -> 161770.3082 | F68: 165693.9031 | G68: =G41 -> 168671.9772 | H68: 171696.4624 | I68: 174767.0191 | J68: 177883.0998
B69: s53ZD depreciation of 2024 additional assets | D69: =D62 -> 8139.75 | E69: 8474.826584 | F69: 8700.418396 | G69: 8878.670871 | H69: 9060.683624 | I69: 9246.5438 | J69: 9436.341278
B70: Total s53ZD depreciation of exising assets, i.e. existing at 31-3-24 | D70: =D67+D69 -> 163768.3841 | E70: =E67+E69 -> 162454.5151 | F70: 158104.2403 | G70: 153469.6847 | H70: 152033.4917 | I70: 151948.2166 | J70: 150553.0898
B71: Total DPP3 depreciation of exising assets, i.e. existing at 31-3-24 | D71: =D68+D69 -> 163768.3841 | E71: =E68+E69 -> 170245.1348 | F71: 174394.3215 | G71: 177550.6481 | H71: 180757.146 | I71: 184013.5629 | J71: 187319.4411
E73: Everything above this line is for the focus EDB only, as selected at Main!C9.
E74: Everything below this line is for the whole set of 16 non-exempt EDBs.
B76: Sum of s53ZD depreciation of assets existing at 31-3-24, with CPI adjustment and adjustment for additional assets added in year ending 2024
D77: =D70 -> 163768.3841 | E77: =E70 -> 162454.5151 | F77: 158104.2403 | G77: 153469.6847 | H77: 152033.4917 | I77: 151948.2166 | J77: 150553.0898
B78: Alpine Energy | C78: 1 | D78: 13027.85355 | E78: 13479.85908 | F78: 13462.06177 | G78: 13354.6349 | H78: 13426.95162 | I78: 13209.00383 | J78: 12618.68719
B79: Aurora Energy | C79: 2 | D79: 31109.00595 | E79: 30953.75357 | F79: 30581.75604 | G79: 30121.79218 | H79: 29789.58121 | I79: 29699.95671 | J79: 29842.42728
B80: EA Networks | C80: 3 | D80: 12986.62646 | E80: 13294.91035 | F80: 13527.54591 | G80: 13586.64215 | H80: 13702.51534 | I80: 13805.9673 | J80: 13960.95766
B81: Electricity Invercargill | C81: 4 | D81: 4161.016624 | E81: 4334.772314 | F81: 4451.903058 | G81: 4544.567071 | H81: 4639.323623 | I81: 4736.238424 | J81: 4835.382013
B82: Firstlight Network | C82: 5 | D82: 8596.71008 | E82: 8956.380069 | F82: 9198.774813 | G82: 9390.434204 | H82: 9586.619928 | I82: 9787.560287 | J82: 9993.553202
B83: Horizon Energy | C83: 6 | D83: 7716.053645 | E83: 7855.348524 | F83: 7779.856388 | G83: 7626.128773 | H83: 7504.490248 | I83: 7281.313374 | J83: 7196.838104
B84: Nelson Electricity | C84: 7 | D84: 1779.96816 | E84: 1773.455833 | F84: 1757.208776 | G84: 1689.864296 | H84: 1659.419127 | I84: 1656.40289 | J84: 1651.761367
B85: Network Tasman | C85: 8 | D85: 8610.509091 | E85: 8368.219334 | F85: 7952.141839 | G85: 7100.904206 | H85: 6977.029868 | I85: 6983.361948 | J85: 7067.685951
B86: Orion NZ | C86: 9 | D86: 58629.70455 | E86: 58324.49371 | F86: 58914.29259 | G86: 57741.44484 | H86: 57207.56435 | I86: 56606.12735 | J86: 56425.17493
B87: OtagoNet | C87: 10 | D87: 11237.6396 | E87: 11708.54528 | F87: 12026.16751 | G87: 12277.5816 | H87: 12534.79102 | I87: 12797.9957 | J87: 13067.41344
B88: Powerco | C88: 11 | D88: 122340.3622 | E88: 113234.8756 | F88: 106059.4683 | G88: 102002.2573 | H88: 98175.52875 | I88: 95806.67422 | J88: 94059.58877
B89: The Lines Company | C89: 12 | D89: 10721.98882 | E89: 11160.95649 | F89: 11453.20861 | G89: 11681.77231 | H89: 11915.08666 | I89: 12153.2681 | J89: 12396.43876
B90: Top Energy | C90: 13 | D90: 13800.24596 | E90: 13266.01082 | F90: 13337.77196 | G90: 13083.76353 | H90: 13062.15435 | I90: 13184.71958 | J90: 13279.53898
B91: Unison Networks | C91: 14 | D91: 39298.66306 | E91: 40614.82542 | F91: 41729.13435 | G91: 42610.66839 | H91: 43511.82072 | I91: 44433.20907 | J91: 45375.50588
B92: Vector Lines | C92: 15 | D92: 163768.3841 | E92: 162454.5151 | F92: 158104.2403 | G92: 153469.6847 | H92: 152033.4917 | I92: 151948.2166 | J92: 150553.0898
B93: Wellington Electricity | C93: 16 | D93: 33585.67914 | E93: 33132.25543 | F93: 33277.42439 | G93: 31425.72968 | H93: 31142.74143 | I93: 31007.10745 | J93: 30866.76569
B95: sum of DPP3 depreciation of assets existing at 31-3-24, with CPI adjustment and adjustment for additional assets added in year ending 2024
D96: =D71 -> 163768.3841 | E96: =E71 -> 170245.1348 | F96: 174394.3215 | G96: 177550.6481 | H96: 180757.146 | I96: 184013.5629 | J96: 187319.4411
B97: Alpine Energy | C97: 1 | D97: 13027.85355 | E97: 13574.51877 | F97: 13942.8986 | G97: 14234.14962 | H97: 14532.04678 | I97: 14837.25227 | J97: 15150.07451
B98: Aurora Energy | C98: 2 | D98: 31109.00595 | E98: 32297.68772 | F98: 33049.78389 | G98: 33612.67583 | H98: 34179.46622 | I98: 34746.79962 | J98: 35313.69542
B99: EA Networks | C99: 3 | D99: 12986.62646 | E99: 13499.70668 | F99: 13834.27964 | G99: 14093.5916 | H99: 14360.00768 | I99: 14629.55027 | J99: 14902.45078
B100: Electricity Invercargill | C100: 4 | D100: 4161.016624 | E100: 4334.772314 | F100: 4451.903058 | G100: 4544.567071 | H100: 4639.323623 | I100: 4736.238424 | J100: 4835.382013
B101: Firstlight Network | C101: 5 | D101: 8596.71008 | E101: 8955.599976 | F101: 9197.378344 | G101: 9388.507021 | H101: 9583.966073 | I101: 9783.895762 | J101: 9988.447569
B102: Horizon Energy | C102: 6 | D102: 7716.053645 | E102: 8017.825434 | F102: 8212.330968 | G102: 8360.154675 | H102: 8511.001787 | I102: 8664.924417 | J102: 8821.987432
B103: Nelson Electricity | C103: 7 | D103: 1779.96816 | E103: 1857.743855 | F103: 1907.860192 | G103: 1947.507395 | H103: 1988.040545 | I103: 2029.486034 | J103: 2071.871967
B104: Network Tasman | C104: 8 | D104: 8610.509091 | E104: 8936.389964 | F104: 9177.150511 | G104: 9351.365352 | H104: 9533.786178 | I104: 9721.174996 | J104: 9913.632632
B105: Orion NZ | C105: 9 | D105: 58629.70455 | E105: 61050.51632 | F105: 62667.899 | G105: 63948.59512 | H105: 65252.80735 | I105: 66575.51864 | J105: 67926.60511
B106: OtagoNet | C106: 10 | D106: 11237.6396 | E106: 11708.54528 | F106: 12026.16751 | G106: 12277.5816 | H106: 12534.79102 | I106: 12797.9957 | J106: 13067.41344
B107: Powerco | C107: 11 | D107: 122340.3622 | E107: 126481.446 | F107: 128824.2323 | G107: 130369.5457 | H107: 131890.7013 | I107: 133380.782 | J107: 134831.533
B108: The Lines Company | C108: 12 | D108: 10721.98882 | E108: 11160.95649 | F108: 11453.20861 | G108: 11681.77231 | H108: 11915.08666 | I108: 12153.2681 | J108: 12396.43876
B109: Top Energy | C109: 13 | D109: 13800.24596 | E109: 14377.76739 | F109: 14767.25328 | G109: 15075.5113 | H109: 15390.81446 | I109: 15713.39604 | J109: 16043.50841
B110: Unison Networks | C110: 14 | D110: 39298.66306 | E110: 40833.03632 | F110: 41875.95201 | G110: 42680.51014 | H110: 43498.55079 | I110: 44329.9789 | J110: 45174.65748
B111: Vector Lines | C111: 15 | D111: 163768.3841 | E111: 170245.1348 | F111: 174394.3215 | G111: 177550.6481 | H111: 180757.146 | I111: 184013.5629 | J111: 187319.4411
B112: Wellington Electricity | C112: 16 | D112: 33585.67914 | E112: 34992.61603 | F112: 35941.62082 | G112: 36692.82818 | H112: 37461.30866 | I112: 38247.65029 | J112: 39052.492
B114: Depreciation decrease in s53ZD depreciation of assets existing at 31-3-24 relative to DPP3 methodology
D115: 2024 | E115: 2025 | F115: 2026 | G115: 2027 | H115: 2028 | I115: 2029 | J115: 2030
D116: =1-INDEX(D78:D93,$C117)/INDEX(D97:D112,$C117) -> 0 | E116: =1-INDEX(E78:E93,$C117)/INDEX(E97:E112,$C117) -> 0.1047313332 | F116: =1-INDEX(F78:F93,$C117)/INDEX(F97:F112,$C117) -> 0.1767118159 | G116: =1-INDEX(G78:G93,$C117)/INDEX(G97:G112,$C117) -> 0.2175913721 | H116: =1-INDEX(H78:H93,$C117)/INDEX(H97:H112,$C117) -> 0.2556296402 | I116: =1-INDEX(I78:I93,$C117)/INDEX(I97:I112,$C117) -> 0.2817055593 | J116: =1-INDEX(J78:J93,$C117)/INDEX(J97:J112,$C117) -> 0.3023917577
B117: =INDEX($B$97:$B$112,C117) -> Powerco | C117: 11 | D117: =1-INDEX(D$78:D$93,$C117)/INDEX(D$97:D$112,$C117) -> 0 | E117: =1-INDEX(E$78:E$93,$C117)/INDEX(E$97:E$112,$C117) -> 0.1047313332 | F117: =1-INDEX(F$78:F$93,$C117)/INDEX(F$97:F$112,$C117) -> 0.1767118159 | G117: =1-INDEX(G$78:G$93,$C117)/INDEX(G$97:G$112,$C117) -> 0.2175913721 | H117: =1-INDEX(H$78:H$93,$C117)/INDEX(H$97:H$112,$C117) -> 0.2556296402 | I117: =1-INDEX(I$78:I$93,$C117)/INDEX(I$97:I$112,$C117) -> 0.2817055593 | J117: =1-INDEX(J$78:J$93,$C117)/INDEX(J$97:J$112,$C117) -> 0.3023917577
B118: =INDEX($B$97:$B$112,C118) -> Network Tasman | C118: 8 | D118: =1-INDEX(D$78:D$93,$C118)/INDEX(D$97:D$112,$C118) -> 0 | E118: =1-INDEX(E$78:E$93,$C118)/INDEX(E$97:E$112,$C118) -> 0.06357943551 | F118: =1-INDEX(F$78:F$93,$C118)/INDEX(F$97:F$112,$C118) -> 0.1334846443 | G118: =1-INDEX(G$78:G$93,$C118)/INDEX(G$97:G$112,$C118) -> 0.2406558894 | H118: =1-INDEX(H$78:H$93,$C118)/INDEX(H$97:H$112,$C118) -> 0.2681784825 | I118: =1-INDEX(I$78:I$93,$C118)/INDEX(I$97:I$112,$C118) -> 0.2816339639 | J118: =1-INDEX(J$78:J$93,$C118)/INDEX(J$97:J$112,$C118) -> 0.2870740511
B119: =INDEX($B$97:$B$112,C119) -> Wellington Electricity | C119: 16 | D119: =1-INDEX(D$78:D$93,$C119)/INDEX(D$97:D$112,$C119) -> 0 | E119: =1-INDEX(E$78:E$93,$C119)/INDEX(E$97:E$112,$C119) -> 0.05316437609 | F119: =1-INDEX(F$78:F$93,$C119)/INDEX(F$97:F$112,$C119) -> 0.07412566192 | G119: =1-INDEX(G$78:G$93,$C119)/INDEX(G$97:G$112,$C119) -> 0.1435457215 | H119: =1-INDEX(H$78:H$93,$C119)/INDEX(H$97:H$112,$C119) -> 0.1686691536 | I119: =1-INDEX(I$78:I$93,$C119)/INDEX(I$97:I$112,$C119) -> 0.189306867 | J119: =1-INDEX(J$78:J$93,$C119)/INDEX(J$97:J$112,$C119) -> 0.2096082962
B120: =INDEX($B$97:$B$112,C120) -> Nelson Electricity | C120: 7 | D120: =1-INDEX(D$78:D$93,$C120)/INDEX(D$97:D$112,$C120) -> 0 | E120: =1-INDEX(E$78:E$93,$C120)/INDEX(E$97:E$112,$C120) -> 0.04537117525 | F120: =1-INDEX(F$78:F$93,$C120)/INDEX(F$97:F$112,$C120) -> 0.07896355133 | G120: =1-INDEX(G$78:G$93,$C120)/INDEX(G$97:G$112,$C120) -> 0.1322937722 | H120: =1-INDEX(H$78:H$93,$C120)/INDEX(H$97:H$112,$C120) -> 0.165299153 | I120: =1-INDEX(I$78:I$93,$C120)/INDEX(I$97:I$112,$C120) -> 0.1838313438 | J120: =1-INDEX(J$78:J$93,$C120)/INDEX(J$97:J$112,$C120) -> 0.2027686104
B121: =INDEX($B$97:$B$112,C121) -> Vector Lines | C121: 15 | D121: =1-INDEX(D$78:D$93,$C121)/INDEX(D$97:D$112,$C121) -> 0 | E121: =1-INDEX(E$78:E$93,$C121)/INDEX(E$97:E$112,$C121) -> 0.04576118817 | F121: =1-INDEX(F$78:F$93,$C121)/INDEX(F$97:F$112,$C121) -> 0.09340947029 | G121: =1-INDEX(G$78:G$93,$C121)/INDEX(G$97:G$112,$C121) -> 0.135628699 | H121: =1-INDEX(H$78:H$93,$C121)/INDEX(H$97:H$112,$C121) -> 0.1589074345 | I121: =1-INDEX(I$78:I$93,$C121)/INDEX(I$97:I$112,$C121) -> 0.1742553416 | J121: =1-INDEX(J$78:J$93,$C121)/INDEX(J$97:J$112,$C121) -> 0.1962762167
B122: =INDEX($B$97:$B$112,C122) -> Horizon Energy | C122: 6 | D122: =1-INDEX(D$78:D$93,$C122)/INDEX(D$97:D$112,$C122) -> 0 | E122: =1-INDEX(E$78:E$93,$C122)/INDEX(E$97:E$112,$C122) -> 0.02026446093 | F122: =1-INDEX(F$78:F$93,$C122)/INDEX(F$97:F$112,$C122) -> 0.05266161107 | G122: =1-INDEX(G$78:G$93,$C122)/INDEX(G$97:G$112,$C122) -> 0.08780051696 | H122: =1-INDEX(H$78:H$93,$C122)/INDEX(H$97:H$112,$C122) -> 0.1182600549 | I122: =1-INDEX(I$78:I$93,$C122)/INDEX(I$97:I$112,$C122) -> 0.1596795283 | J122: =1-INDEX(J$78:J$93,$C122)/INDEX(J$97:J$112,$C122) -> 0.1842157836
B123: =INDEX($B$97:$B$112,C123) -> Top Energy | C123: 13 | D123: =1-INDEX(D$78:D$93,$C123)/INDEX(D$97:D$112,$C123) -> 0 | E123: =1-INDEX(E$78:E$93,$C123)/INDEX(E$97:E$112,$C123) -> 0.07732470131 | F123: =1-INDEX(F$78:F$93,$C123)/INDEX(F$97:F$112,$C123) -> 0.09680075884 | G123: =1-INDEX(G$78:G$93,$C123)/INDEX(G$97:G$112,$C123) -> 0.1321180906 | H123: =1-INDEX(H$78:H$93,$C123)/INDEX(H$97:H$112,$C123) -> 0.151301942 | I123: =1-INDEX(I$78:I$93,$C123)/INDEX(I$97:I$112,$C123) -> 0.1609248856 | J123: =1-INDEX(J$78:J$93,$C123)/INDEX(J$97:J$112,$C123) -> 0.1722796139
B124: =INDEX($B$97:$B$112,C124) -> Orion NZ | C124: 9 | D124: =1-INDEX(D$78:D$93,$C124)/INDEX(D$97:D$112,$C124) -> 0 | E124: =1-INDEX(E$78:E$93,$C124)/INDEX(E$97:E$112,$C124) -> 0.04465191725 | F124: =1-INDEX(F$78:F$93,$C124)/INDEX(F$97:F$112,$C124) -> 0.05989679687 | G124: =1-INDEX(G$78:G$93,$C124)/INDEX(G$97:G$112,$C124) -> 0.09706468562 | H124: =1-INDEX(H$78:H$93,$C124)/INDEX(H$97:H$112,$C124) -> 0.1232934387 | I124: =1-INDEX(I$78:I$93,$C124)/INDEX(I$97:I$112,$C124) -> 0.1497456046 | J124: =1-INDEX(J$78:J$93,$C124)/INDEX(J$97:J$112,$C124) -> 0.169321434
B125: =INDEX($B$97:$B$112,C125) -> Alpine Energy | C125: 1 | D125: =1-INDEX(D$78:D$93,$C125)/INDEX(D$97:D$112,$C125) -> 0 | E125: =1-INDEX(E$78:E$93,$C125)/INDEX(E$97:E$112,$C125) -> 0.006973336798 | F125: =1-INDEX(F$78:F$93,$C125)/INDEX(F$97:F$112,$C125) -> 0.03448614566 | G125: =1-INDEX(G$78:G$93,$C125)/INDEX(G$97:G$112,$C125) -> 0.06178905935 | H125: =1-INDEX(H$78:H$93,$C125)/INDEX(H$97:H$112,$C125) -> 0.07604538982 | I125: =1-INDEX(I$78:I$93,$C125)/INDEX(I$97:I$112,$C125) -> 0.1097405641 | J125: =1-INDEX(J$78:J$93,$C125)/INDEX(J$97:J$112,$C125) -> 0.16708745
B126: =INDEX($B$97:$B$112,C126) -> Aurora Energy | C126: 2 | D126: =1-INDEX(D$78:D$93,$C126)/INDEX(D$97:D$112,$C126) -> 0 | E126: =1-INDEX(E$78:E$93,$C126)/INDEX(E$97:E$112,$C126) -> 0.04161084718 | F126: =1-INDEX(F$78:F$93,$C126)/INDEX(F$97:F$112,$C126) -> 0.0746760663 | G126: =1-INDEX(G$78:G$93,$C126)/INDEX(G$97:G$112,$C126) -> 0.1038561663 | H126: =1-INDEX(H$78:H$93,$C126)/INDEX(H$97:H$112,$C126) -> 0.1284363244 | I126: =1-INDEX(I$78:I$93,$C126)/INDEX(I$97:I$112,$C126) -> 0.1452462662 | J126: =1-INDEX(J$78:J$93,$C126)/INDEX(J$97:J$112,$C126) -> 0.1549333219
B127: =INDEX($B$97:$B$112,C127) -> EA Networks | C127: 3 | D127: =1-INDEX(D$78:D$93,$C127)/INDEX(D$97:D$112,$C127) -> 0 | E127: =1-INDEX(E$78:E$93,$C127)/INDEX(E$97:E$112,$C127) -> 0.01517042803 | F127: =1-INDEX(F$78:F$93,$C127)/INDEX(F$97:F$112,$C127) -> 0.02217200638 | G127: =1-INDEX(G$78:G$93,$C127)/INDEX(G$97:G$112,$C127) -> 0.03597021036 | H127: =1-INDEX(H$78:H$93,$C127)/INDEX(H$97:H$112,$C127) -> 0.04578635003 | I127: =1-INDEX(I$78:I$93,$C127)/INDEX(I$97:I$112,$C127) -> 0.05629584977 | J127: =1-INDEX(J$78:J$93,$C127)/INDEX(J$97:J$112,$C127) -> 0.06317706644
B128: =INDEX($B$97:$B$112,C128) -> Electricity Invercargill | C128: 4 | D128: =1-INDEX(D$78:D$93,$C128)/INDEX(D$97:D$112,$C128) -> 0 | E128: =1-INDEX(E$78:E$93,$C128)/INDEX(E$97:E$112,$C128) -> 0 | F128: =1-INDEX(F$78:F$93,$C128)/INDEX(F$97:F$112,$C128) -> 0 | G128: =1-INDEX(G$78:G$93,$C128)/INDEX(G$97:G$112,$C128) -> 0 | H128: =1-INDEX(H$78:H$93,$C128)/INDEX(H$97:H$112,$C128) -> 0 | I128: =1-INDEX(I$78:I$93,$C128)/INDEX(I$97:I$112,$C128) -> 0 | J128: =1-INDEX(J$78:J$93,$C128)/INDEX(J$97:J$112,$C128) -> 0
B129: =INDEX($B$97:$B$112,C129) -> OtagoNet | C129: 10 | D129: =1-INDEX(D$78:D$93,$C129)/INDEX(D$97:D$112,$C129) -> 0 | E129: =1-INDEX(E$78:E$93,$C129)/INDEX(E$97:E$112,$C129) -> 0 | F129: =1-INDEX(F$78:F$93,$C129)/INDEX(F$97:F$112,$C129) -> 0 | G129: =1-INDEX(G$78:G$93,$C129)/INDEX(G$97:G$112,$C129) -> 0 | H129: =1-INDEX(H$78:H$93,$C129)/INDEX(H$97:H$112,$C129) -> 0 | I129: =1-INDEX(I$78:I$93,$C129)/INDEX(I$97:I$112,$C129) -> 0 | J129: =1-INDEX(J$78:J$93,$C129)/INDEX(J$97:J$112,$C129) -> 0
B130: =INDEX($B$97:$B$112,C130) -> The Lines Company | C130: 12 | D130: =1-INDEX(D$78:D$93,$C130)/INDEX(D$97:D$112,$C130) -> 0 | E130: =1-INDEX(E$78:E$93,$C130)/INDEX(E$97:E$112,$C130) -> 0 | F130: =1-INDEX(F$78:F$93,$C130)/INDEX(F$97:F$112,$C130) -> 0 | G130: =1-INDEX(G$78:G$93,$C130)/INDEX(G$97:G$112,$C130) -> 0 | H130: =1-INDEX(H$78:H$93,$C130)/INDEX(H$97:H$112,$C130) -> 0 | I130: =1-INDEX(I$78:I$93,$C130)/INDEX(I$97:I$112,$C130) -> 0 | J130: =1-INDEX(J$78:J$93,$C130)/INDEX(J$97:J$112,$C130) -> 0
B131: =INDEX($B$97:$B$112,C131) -> Firstlight Network | C131: 5 | D131: =1-INDEX(D$78:D$93,$C131)/INDEX(D$97:D$112,$C131) -> 0 | E131: =1-INDEX(E$78:E$93,$C131)/INDEX(E$97:E$112,$C131) -> -8.710666689e-05 | F131: =1-INDEX(F$78:F$93,$C131)/INDEX(F$97:F$112,$C131) -> -0.0001518333715 | G131: =1-INDEX(G$78:G$93,$C131)/INDEX(G$97:G$112,$C131) -> -0.0002052704792 | H131: =1-INDEX(H$78:H$93,$C131)/INDEX(H$97:H$112,$C131) -> -0.0002769057579 | I131: =1-INDEX(I$78:I$93,$C131)/INDEX(I$97:I$112,$C131) -> -0.0003745466578 | J131: =1-INDEX(J$78:J$93,$C131)/INDEX(J$97:J$112,$C131) -> -0.0005111538575
B132: =INDEX($B$97:$B$112,C132) -> Unison Networks | C132: 14 | D132: =1-INDEX(D$78:D$93,$C132)/INDEX(D$97:D$112,$C132) -> 0 | E132: =1-INDEX(E$78:E$93,$C132)/INDEX(E$97:E$112,$C132) -> 0.00534397935 | F132: =1-INDEX(F$78:F$93,$C132)/INDEX(F$97:F$112,$C132) -> 0.003506013442 | G132: =1-INDEX(G$78:G$93,$C132)/INDEX(G$97:G$112,$C132) -> 0.001636384978 | H132: =1-INDEX(H$78:H$93,$C132)/INDEX(H$97:H$112,$C132) -> -0.0003050659838 | I132: =1-INDEX(I$78:I$93,$C132)/INDEX(I$97:I$112,$C132) -> -0.002328676288 | J132: =1-INDEX(J$78:J$93,$C132)/INDEX(J$97:J$112,$C132) -> -0.004446041435

Sheet Outputs
A1: Outputs
A2: The data panel immediately below (starting at Row 9) links to the financial model to provide the sum of depreciation of existing assets.
A3: Select between s52ZD and DPP3 depreciation using the dropdown at cell G6. The normal setting should always be "sum of DPP3
A4: depreciation of assets existing at 31-3-24".
A6: The panel immediately below is the sum of depreciation of existing assets, based on: | G6: sum of s53ZD depreciation of assets existing at 31-3-24
A7: s53ZD depreciation has been selected? | D7: =G6="sum of s53ZD depreciation of assets existing at 31-3-24" -> TRUE
D8: =NOT(D7) -> FALSE | E8: =IF(D7,".","CAUTION! DPP3 depreciation has been selected.") -> .
B9: Alpine Energy | C9: Aurora Energy | D9: EA Networks | E9: Electricity Invercargill | F9: Firstlight Network | G9: Horizon Energy | H9: Nelson Electricity | I9: Network Tasman | J9: Orion NZ | K9: OtagoNet | L9: Powerco | M9: The Lines Company | N9: Top Energy | O9: Unison Networks | P9: Vector Lines | Q9: Wellington Electricity
A10: 2024 | B10: =TRANSPOSE(C21:I36) -> 13027.85355 | C10: 31109.00595 | D10: 12986.62646 | E10: 4161.016624 | F10: 8596.71008 | G10: 7716.053645 | H10: 1779.96816 | I10: 8610.509091 | J10: 58629.70455 | K10: 11237.6396 | L10: 122340.3622 | M10: 10721.98882 | N10: 13800.24596 | O10: 39298.66306 | P10: 163768.3841 | Q10: 33585.67914
A11: 2025 | B11: 13479.85908 | C11: 30953.75357 | D11: 13294.91035 | E11: 4334.772314 | F11: 8956.380069 | G11: 7855.348524 | H11: 1773.455833 | I11: 8368.219334 | J11: 58324.49371 | K11: 11708.54528 | L11: 113234.8756 | M11: 11160.95649 | N11: 13266.01082 | O11: 40614.82542 | P11: 162454.5151 | Q11: 33132.25543
A12: 2026 | B12: 13462.06177 | C12: 30581.75604 | D12: 13527.54591 | E12: 4451.903058 | F12: 9198.774813 | G12: 7779.856388 | H12: 1757.208776 | I12: 7952.141839 | J12: 58914.29259 | K12: 12026.16751 | L12: 106059.4683 | M12: 11453.20861 | N12: 13337.77196 | O12: 41729.13435 | P12: 158104.2403 | Q12: 33277.42439
A13: 2027 | B13: 13354.6349 | C13: 30121.79218 | D13: 13586.64215 | E13: 4544.567071 | F13: 9390.434204 | G13: 7626.128773 | H13: 1689.864296 | I13: 7100.904206 | J13: 57741.44484 | K13: 12277.5816 | L13: 102002.2573 | M13: 11681.77231 | N13: 13083.76353 | O13: 42610.66839 | P13: 153469.6847 | Q13: 31425.72968
A14: 2028 | B14: 13426.95162 | C14: 29789.58121 | D14: 13702.51534 | E14: 4639.323623 | F14: 9586.619928 | G14: 7504.490248 | H14: 1659.419127 | I14: 6977.029868 | J14: 57207.56435 | K14: 12534.79102 | L14: 98175.52875 | M14: 11915.08666 | N14: 13062.15435 | O14: 43511.82072 | P14: 152033.4917 | Q14: 31142.74143
A15: 2029 | B15: 13209.00383 | C15: 29699.95671 | D15: 13805.9673 | E15: 4736.238424 | F15: 9787.560287 | G15: 7281.313374 | H15: 1656.40289 | I15: 6983.361948 | J15: 56606.12735 | K15: 12797.9957 | L15: 95806.67422 | M15: 12153.2681 | N15: 13184.71958 | O15: 44433.20907 | P15: 151948.2166 | Q15: 31007.10745
A16: 2030 | B16: 12618.68719 | C16: 29842.42728 | D16: 13960.95766 | E16: 4835.382013 | F16: 9993.553202 | G16: 7196.838104 | H16: 1651.761367 | I16: 7067.685951 | J16: 56425.17493 | K16: 13067.41344 | L16: 94059.58877 | M16: 12396.43876 | N16: 13279.53898 | O16: 45375.50588 | P16: 150553.0898 | Q16: 30866.76569
A19: Data for linking to the financial model: | E19: =IF(D8,"This is not IM compliant for DPP4.",".") -> .
C20: 2024 | D20: 2025 | E20: 2026 | F20: 2027 | G20: 2028 | H20: 2029 | I20: 2030
A21: Alpine Energy | C21: =IF($D$7,C40,C59) -> 13027.85355 | D21: 13479.85908 | E21: 13462.06177 | F21: 13354.6349 | G21: 13426.95162 | H21: 13209.00383 | I21: 12618.68719
A22: Aurora Energy | C22: =IF($D$7,C41,C60) -> 31109.00595 | D22: 30953.75357 | E22: 30581.75604 | F22: 30121.79218 | G22: 29789.58121 | H22: 29699.95671 | I22: 29842.42728
A23: EA Networks | C23: =IF($D$7,C42,C61) -> 12986.62646 | D23: 13294.91035 | E23: 13527.54591 | F23: 13586.64215 | G23: 13702.51534 | H23: 13805.9673 | I23: 13960.95766
A24: Electricity Invercargill | C24: =IF($D$7,C43,C62) -> 4161.016624 | D24: 4334.772314 | E24: 4451.903058 | F24: 4544.567071 | G24: 4639.323623 | H24: 4736.238424 | I24: 4835.382013
A25: Firstlight Network | C25: =IF($D$7,C44,C63) -> 8596.71008 | D25: 8956.380069 | E25: 9198.774813 | F25: 9390.434204 | G25: 9586.619928 | H25: 9787.560287 | I25: 9993.553202
A26: Horizon Energy | C26: =IF($D$7,C45,C64) -> 7716.053645 | D26: 7855.348524 | E26: 7779.856388 | F26: 7626.128773 | G26: 7504.490248 | H26: 7281.313374 | I26: 7196.838104
A27: Nelson Electricity | C27: =IF($D$7,C46,C65) -> 1779.96816 | D27: 1773.455833 | E27: 1757.208776 | F27: 1689.864296 | G27: 1659.419127 | H27: 1656.40289 | I27: 1651.761367
A28: Network Tasman | C28: =IF($D$7,C47,C66) -> 8610.509091 | D28: 8368.219334 | E28: 7952.141839 | F28: 7100.904206 | G28: 6977.029868 | H28: 6983.361948 | I28: 7067.685951
A29: Orion NZ | C29: =IF($D$7,C48,C67) -> 58629.70455 | D29: 58324.49371 | E29: 58914.29259 | F29: 57741.44484 | G29: 57207.56435 | H29: 56606.12735 | I29: 56425.17493
A30: OtagoNet | C30: =IF($D$7,C49,C68) -> 11237.6396 | D30: 11708.54528 | E30: 12026.16751 | F30: 12277.5816 | G30: 12534.79102 | H30: 12797.9957 | I30: 13067.41344
A31: Powerco | C31: =IF($D$7,C50,C69) -> 122340.3622 | D31: =IF($D$7,D50,D69) -> 113234.8756 | E31: 106059.4683 | F31: 102002.2573 | G31: 98175.52875 | H31: 95806.67422 | I31: 94059.58877
A32: The Lines Company | C32: =IF($D$7,C51,C70) -> 10721.98882 | D32: 11160.95649 | E32: 11453.20861 | F32: 11681.77231 | G32: 11915.08666 | H32: 12153.2681 | I32: 12396.43876
A33: Top Energy | C33: =IF($D$7,C52,C71) -> 13800.24596 | D33: 13266.01082 | E33: 13337.77196 | F33: 13083.76353 | G33: 13062.15435 | H33: 13184.71958 | I33: 13279.53898
A34: Unison Networks | C34: =IF($D$7,C53,C72) -> 39298.66306 | D34: 40614.82542 | E34: 41729.13435 | F34: 42610.66839 | G34: 43511.82072 | H34: 44433.20907 | I34: 45375.50588
A35: Vector Lines | C35: =IF($D$7,C54,C73) -> 163768.3841 | D35: 162454.5151 | E35: 158104.2403 | F35: 153469.6847 | G35: 152033.4917 | H35: 151948.2166 | I35: 150553.0898
A36: Wellington Electricity | C36: =IF($D$7,C55,C74) -> 33585.67914 | D36: 33132.25543 | E36: 33277.42439 | F36: 31425.72968 | G36: 31142.74143 | H36: 31007.10745 | I36: 30866.76569
A38: Sum of s53ZD depreciation of assets existing at 31-3-24, with CPI adjustment and adjustment for additional assets added in year ending 2024
C39: 2024 | D39: 2025 | E39: 2026 | F39: 2027 | G39: 2028 | H39: 2029 | I39: 2030 | L39: 2025 | M39: 2026 | N39: 2027 | O39: 2028 | P39: 2029 | Q39: 2030
A40: =Main!B78 -> Alpine Energy | C40: =Main!D78 -> 13027.85355 | D40: =Main!E78 -> 13479.85908 | E40: =Main!F78 -> 13462.06177 | F40: =Main!G78 -> 13354.6349 | G40: =Main!H78 -> 13426.95162 | H40: =Main!I78 -> 13209.00383 | I40: =Main!J78 -> 12618.68719 | J40: Alpine Energy | L40: 13797.43903 | M40: 14039.22501 | N40: 14316.08989 | O40: 14614.84684 | P40: 14921.07452 | Q40: 15235.24468
A41: =Main!B79 -> Aurora Energy | C41: =Main!D79 -> 31109.00595 | D41: =Main!E79 -> 30953.75357 | E41: =Main!F79 -> 30581.75604 | F41: =Main!G79 -> 30121.79218 | G41: =Main!H79 -> 29789.58121 | H41: =Main!I79 -> 29699.95671 | I41: =Main!J79 -> 29842.42728 | J41: Aurora Energy | L41: 17758.04221 | M41: 18059.85261 | N41: 18404.39171 | O41: 18774.77286 | P41: 19152.7378 | Q41: 19538.45767
A42: =Main!B80 -> EA Networks | C42: =Main!D80 -> 12986.62646 | D42: =Main!E80 -> 13294.91035 | E42: =Main!F80 -> 13527.54591 | F42: =Main!G80 -> 13586.64215 | G42: =Main!H80 -> 13702.51534 | H42: =Main!I80 -> 13805.9673 | I42: =Main!J80 -> 13960.95766 | J42: EA Networks | L42: 10239.78967 | M42: 10376.96533 | N42: 10535.68548 | O42: 10705.86326 | P42: 10876.74679 | Q42: 11048.07523
A43: =Main!B81 -> Electricity Invercargill | C43: =Main!D81 -> 4161.016624 | D43: =Main!E81 -> 4334.772314 | E43: =Main!F81 -> 4451.903058 | F43: =Main!G81 -> 4544.567071 | G43: =Main!H81 -> 4639.323623 | H43: =Main!I81 -> 4736.238424 | I43: =Main!J81 -> 4835.382013 | J43: Electricity Invercargill | L43: 3337.632799 | M43: 3391.592374 | N43: 3453.342945 | O43: 3519.686056 | P43: 3587.175757 | Q43: 3655.816485
A44: =Main!B82 -> Firstlight Network | C44: =Main!D82 -> 8596.71008 | D44: =Main!E82 -> 8956.380069 | E44: =Main!F82 -> 9198.774813 | F44: =Main!G82 -> 9390.434204 | G44: =Main!H82 -> 9586.619928 | H44: =Main!I82 -> 9787.560287 | I44: =Main!J82 -> 9993.553202 | J44: Firstlight Network | L44: 6628.185749 | M44: 6737.804842 | N44: 6863.130177 | O44: 6997.820443 | P44: 7135.028801 | Q44: 7274.786407
A45: =Main!B83 -> Horizon Energy | C45: =Main!D83 -> 7716.053645 | D45: =Main!E83 -> 7855.348524 | E45: =Main!F83 -> 7779.856388 | F45: =Main!G83 -> 7626.128773 | G45: =Main!H83 -> 7504.490248 | H45: =Main!I83 -> 7281.313374 | I45: =Main!J83 -> 7196.838104 | J45: Horizon Energy | L45: 7251.286237 | M45: 7365.149528 | N45: 7495.747308 | O45: 7635.965156 | P45: 7778.101662 | Q45: 7922.056918
A46: =Main!B84 -> Nelson Electricity | C46: =Main!D84 -> 1779.96816 | D46: =Main!E84 -> 1773.455833 | E46: =Main!F84 -> 1757.208776 | F46: =Main!G84 -> 1689.864296 | G46: =Main!H84 -> 1659.419127 | H46: =Main!I84 -> 1656.40289 | I46: =Main!J84 -> 1651.761367 | J46: Nelson Electricity | L46: 1529.317419 | M46: 1553.590876 | N46: 1581.39359 | O46: 1611.258884 | P46: 1641.609376 | Q46: 1672.443927
A47: =Main!B85 -> Network Tasman | C47: =Main!D85 -> 8610.509091 | D47: =Main!E85 -> 8368.219334 | E47: =Main!F85 -> 7952.141839 | F47: =Main!G85 -> 7100.904206 | G47: =Main!H85 -> 6977.029868 | H47: =Main!I85 -> 6983.361948 | I47: =Main!J85 -> 7067.685951 | J47: Network Tasman | L47: 7096.795539 | M47: 7197.700443 | N47: 7313.984454 | O47: 7438.660356 | P47: 7564.242728 | Q47: 7690.564939
A48: =Main!B86 -> Orion NZ | C48: =Main!D86 -> 58629.70455 | D48: =Main!E86 -> 58324.49371 | E48: =Main!F86 -> 58914.29259 | F48: =Main!G86 -> 57741.44484 | G48: =Main!H86 -> 57207.56435 | H48: =Main!I86 -> 56606.12735 | I48: =Main!J86 -> 56425.17493 | J48: Orion NZ | L48: 43748.80817 | M48: 44449.68189 | N48: 45252.2249 | O48: 46114.37564 | P48: 46990.82031 | Q48: 47881.52725
A49: =Main!B87 -> OtagoNet | C49: =Main!D87 -> 11237.6396 | D49: =Main!E87 -> 11708.54528 | E49: =Main!F87 -> 12026.16751 | F49: =Main!G87 -> 12277.5816 | G49: =Main!H87 -> 12534.79102 | H49: =Main!I87 -> 12797.9957 | I49: =Main!J87 -> 13067.41344 | J49: OtagoNet | L49: 8385.680061 | M49: 8521.370568 | N49: 8676.697145 | O49: 8843.587805 | P49: 9013.332697 | Q49: 9185.932488
A50: =Main!B88 -> Powerco | C50: =Main!D88 -> 122340.3622 | D50: =Main!E88 -> 113234.8756 | E50: =Main!F88 -> 106059.4683 | F50: =Main!G88 -> 102002.2573 | G50: =Main!H88 -> 98175.52875 | H50: =Main!I88 -> 95806.67422 | I50: =Main!J88 -> 94059.58877 | J50: Powerco | L50: 75279.47764 | M50: 76090.01768 | N50: 77040.93717 | O50: 78055.3408 | P50: 79051.86009 | Q50: 80025.78161
A51: =Main!B89 -> The Lines Company | C51: =Main!D89 -> 10721.98882 | D51: =Main!E89 -> 11160.95649 | E51: =Main!F89 -> 11453.20861 | F51: =Main!G89 -> 11681.77231 | G51: =Main!H89 -> 11915.08666 | H51: =Main!I89 -> 12153.2681 | I51: =Main!J89 -> 12396.43876 | J51: The Lines Company | L51: 9620.247733 | M51: 9766.41503 | N51: 9934.267299 | O51: 10114.3916 | P51: 10296.65271 | Q51: 10480.90505
A52: =Main!B90 -> Top Energy | C52: =Main!D90 -> 13800.24596 | D52: =Main!E90 -> 13266.01082 | E52: =Main!F90 -> 13337.77196 | F52: =Main!G90 -> 13083.76353 | G52: =Main!H90 -> 13062.15435 | H52: =Main!I90 -> 13184.71958 | I52: =Main!J90 -> 13279.53898 | J52: Top Energy | L52: 9876.838538 | M52: 10050.06558 | N52: 10247.45577 | O52: 10459.68265 | P52: 10676.64564 | Q52: 10898.48943
A53: =Main!B91 -> Unison Networks | C53: =Main!D91 -> 39298.66306 | D53: =Main!E91 -> 40614.82542 | E53: =Main!F91 -> 41729.13435 | F53: =Main!G91 -> 42610.66839 | G53: =Main!H91 -> 43511.82072 | H53: =Main!I91 -> 44433.20907 | I53: =Main!J91 -> 45375.50588 | J53: Unison Networks | L53: 30584.12274 | M53: 30991.8315 | N53: 31462.96922 | O53: 31966.72104 | P53: 32470.05893 | Q53: 32971.52896
A54: =Main!B92 -> Vector Lines | C54: =Main!D92 -> 163768.3841 | D54: =Main!E92 -> 162454.5151 | E54: =Main!F92 -> 158104.2403 | F54: =Main!G92 -> 153469.6847 | G54: =Main!H92 -> 152033.4917 | H54: =Main!I92 -> 151948.2166 | I54: =Main!J92 -> 150553.0898 | J54: Vector Lines | L54: 117620.2657 | M54: 119261.6896 | N54: 121156.022 | O54: 123188.0243 | P54: 125234.5979 | Q54: 127293.3702
A55: =Main!B93 -> Wellington Electricity | C55: =Main!D93 -> 33585.67914 | D55: =Main!E93 -> 33132.25543 | E55: =Main!F93 -> 33277.42439 | F55: =Main!G93 -> 31425.72968 | G55: =Main!H93 -> 31142.74143 | H55: =Main!I93 -> 31007.10745 | I55: =Main!J93 -> 30866.76569 | J55: Wellington Electricity | L55: 28291.97846 | M55: 28794.92142 | N55: 29368.30803 | O55: 29985.39766 | P55: 30617.15017 | Q55: 31264.14607
A57: Sum of DPP3 depreciation of assets existing at 31-3-24, with CPI adjustment and adjustment for additional assets added in year ending 2024
C58: 2024 | D58: 2025 | E58: 2026 | F58: 2027 | G58: 2028 | H58: 2029 | I58: 2030
A59: =Main!B97 -> Alpine Energy | C59: =Main!D97 -> 13027.85355 | D59: =Main!E97 -> 13574.51877 | E59: =Main!F97 -> 13942.8986 | F59: =Main!G97 -> 14234.14962 | G59: =Main!H97 -> 14532.04678 | H59: =Main!I97 -> 14837.25227 | I59: =Main!J97 -> 15150.07451
A60: =Main!B98 -> Aurora Energy | C60: =Main!D98 -> 31109.00595 | D60: =Main!E98 -> 32297.68772 | E60: =Main!F98 -> 33049.78389 | F60: =Main!G98 -> 33612.67583 | G60: =Main!H98 -> 34179.46622 | H60: =Main!I98 -> 34746.79962 | I60: =Main!J98 -> 35313.69542
A61: =Main!B99 -> EA Networks | C61: =Main!D99 -> 12986.62646 | D61: =Main!E99 -> 13499.70668 | E61: =Main!F99 -> 13834.27964 | F61: =Main!G99 -> 14093.5916 | G61: =Main!H99 -> 14360.00768 | H61: =Main!I99 -> 14629.55027 | I61: =Main!J99 -> 14902.45078
A62: =Main!B100 -> Electricity Invercargill | C62: =Main!D100 -> 4161.016624 | D62: =Main!E100 -> 4334.772314 | E62: =Main!F100 -> 4451.903058 | F62: =Main!G100 -> 4544.567071 | G62: =Main!H100 -> 4639.323623 | H62: =Main!I100 -> 4736.238424 | I62: =Main!J100 -> 4835.382013
A63: =Main!B101 -> Firstlight Network | C63: =Main!D101 -> 8596.71008 | D63: =Main!E101 -> 8955.599976 | E63: =Main!F101 -> 9197.378344 | F63: =Main!G101 -> 9388.507021 | G63: =Main!H101 -> 9583.966073 | H63: =Main!I101 -> 9783.895762 | I63: =Main!J101 -> 9988.447569
A64: =Main!B102 -> Horizon Energy | C64: =Main!D102 -> 7716.053645 | D64: =Main!E102 -> 8017.825434 | E64: =Main!F102 -> 8212.330968 | F64: =Main!G102 -> 8360.154675 | G64: =Main!H102 -> 8511.001787 | H64: =Main!I102 -> 8664.924417 | I64: =Main!J102 -> 8821.987432
A65: =Main!B103 -> Nelson Electricity | C65: =Main!D103 -> 1779.96816 | D65: =Main!E103 -> 1857.743855 | E65: =Main!F103 -> 1907.860192 | F65: =Main!G103 -> 1947.507395 | G65: =Main!H103 -> 1988.040545 | H65: =Main!I103 -> 2029.486034 | I65: =Main!J103 -> 2071.871967
A66: =Main!B104 -> Network Tasman | C66: =Main!D104 -> 8610.509091 | D66: =Main!E104 -> 8936.389964 | E66: =Main!F104 -> 9177.150511 | F66: =Main!G104 -> 9351.365352 | G66: =Main!H104 -> 9533.786178 | H66: =Main!I104 -> 9721.174996 | I66: =Main!J104 -> 9913.632632
A67: =Main!B105 -> Orion NZ | C67: =Main!D105 -> 58629.70455 | D67: =Main!E105 -> 61050.51632 | E67: =Main!F105 -> 62667.899 | F67: =Main!G105 -> 63948.59512 | G67: =Main!H105 -> 65252.80735 | H67: =Main!I105 -> 66575.51864 | I67: =Main!J105 -> 67926.60511
A68: =Main!B106 -> OtagoNet | C68: =Main!D106 -> 11237.6396 | D68: =Main!E106 -> 11708.54528 | E68: =Main!F106 -> 12026.16751 | F68: =Main!G106 -> 12277.5816 | G68: =Main!H106 -> 12534.79102 | H68: =Main!I106 -> 12797.9957 | I68: =Main!J106 -> 13067.41344
A69: =Main!B107 -> Powerco | C69: =Main!D107 -> 122340.3622 | D69: =Main!E107 -> 126481.446 | E69: =Main!F107 -> 128824.2323 | F69: =Main!G107 -> 130369.5457 | G69: =Main!H107 -> 131890.7013 | H69: =Main!I107 -> 133380.782 | I69: =Main!J107 -> 134831.533
A70: =Main!B108 -> The Lines Company | C70: =Main!D108 -> 10721.98882 | D70: =Main!E108 -> 11160.95649 | E70: =Main!F108 -> 11453.20861 | F70: =Main!G108 -> 11681.77231 | G70: =Main!H108 -> 11915.08666 | H70: =Main!I108 -> 12153.2681 | I70: =Main!J108 -> 12396.43876
A71: =Main!B109 -> Top Energy | C71: =Main!D109 -> 13800.24596 | D71: =Main!E109 -> 14377.76739 | E71: =Main!F109 -> 14767.25328 | F71: =Main!G109 -> 15075.5113 | G71: =Main!H109 -> 15390.81446 | H71: =Main!I109 -> 15713.39604 | I71: =Main!J109 -> 16043.50841
A72: =Main!B110 -> Unison Networks | C72: =Main!D110 -> 39298.66306 | D72: =Main!E110 -> 40833.03632 | E72: =Main!F110 -> 41875.95201 | F72: =Main!G110 -> 42680.51014 | G72: =Main!H110 -> 43498.55079 | H72: =Main!I110 -> 44329.9789 | I72: =Main!J110 -> 45174.65748
A73: =Main!B111 -> Vector Lines | C73: =Main!D111 -> 163768.3841 | D73: =Main!E111 -> 170245.1348 | E73: =Main!F111 -> 174394.3215 | F73: =Main!G111 -> 177550.6481 | G73: =Main!H111 -> 180757.146 | H73: =Main!I111 -> 184013.5629 | I73: =Main!J111 -> 187319.4411
A74: =Main!B112 -> Wellington Electricity | C74: =Main!D112 -> 33585.67914 | D74: =Main!E112 -> 34992.61603 | E74: =Main!F112 -> 35941.62082 | F74: =Main!G112 -> 36692.82818 | G74: =Main!H112 -> 37461.30866 | H74: =Main!I112 -> 38247.65029 | I74: =Main!J112 -> 39052.492
A78: Depreciation decrease in s53ZD depreciation of assets existing at 31-3-24 relative to DPP3 methodology
C79: 2024 | D79: 2025 | E79: 2026 | F79: 2027 | G79: 2028 | H79: 2029 | I79: 2030
A80: Powerco | C80: 0 | D80: 0.1047322882 | E80: 0.1767096288 | F80: 0.2175908948 | G80: 0.2556315185 | H80: 0.2817103807 | I80: 0.302400364
A81: Network Tasman | C81: 0 | D81: 0.06357975961 | E81: 0.1334829234 | F81: 0.2406551024 | G81: 0.2681780917 | H81: 0.2816339199 | I81: 0.2870743438
A82: Wellington Electricity | C82: 0 | D82: 0.0531645857 | E82: 0.07412377849 | F82: 0.1435442293 | G82: 0.1686678027 | H82: 0.1893056321 | I82: 0.2096071753
A83: Nelson Electricity | C83: 0 | D83: 0.04537124583 | E83: 0.07896209378 | F83: 0.1322924727 | G83: 0.1652979514 | H83: 0.183830197 | I83: 0.2027675197
A84: Vector Lines | C84: 0 | D84: 0.04576146443 | E84: 0.09340826676 | F84: 0.1356280108 | G84: 0.1589072365 | H84: 0.1742557047 | I84: 0.1962773704
A85: Horizon Energy | C85: 0 | D85: 0.02026455523 | E85: 0.05266087556 | F85: 0.08780006947 | G85: 0.118259971 | H85: 0.1596800068 | I85: 0.1842168849
A86: Top Energy | C86: 0 | D86: 0.07732497095 | E86: 0.09679811055 | F86: 0.1321156628 | G86: 0.151299634 | H86: 0.1609226378 | I86: 0.1722774372
A87: Orion NZ | C87: 0 | D87: 0.04465214994 | E87: 0.05989535818 | F87: 0.09706350484 | G87: 0.123292466 | H87: 0.1497448794 | I87: 0.1693209417
A88: Alpine Energy | C88: 0 | D88: 0.00697337091 | E88: 0.03448597389 | F88: 0.06178900863 | G88: 0.07604540487 | H88: 0.1097407314 | I88: 0.167087874
A89: Aurora Energy | C89: 0 | D89: 0.04161119046 | E89: 0.07467510273 | F89: 0.1038557436 | G89: 0.1284365753 | H89: 0.1452473157 | I89: 0.1549353306
A90: EA Networks | C90: 0 | D90: 0.01517046647 | E90: 0.02217148412 | F90: 0.0359697554 | G90: 0.04578596961 | H90: 0.0562955783 | I90: 0.06317693241
A91: Electricity Invercargill | C91: 0 | D91: 0 | E91: 0 | F91: 0 | G91: 0 | H91: 0 | I91: 0
A92: OtagoNet | C92: 0 | D92: 0 | E92: 0 | F92: 0 | G92: 0 | H92: 0 | I92: 0
A93: The Lines Company | C93: 0 | D93: 0 | E93: 0 | F93: 0 | G93: 0 | H93: 0 | I93: 0
A94: Firstlight Network | C94: 0 | D94: -8.710702447e-05 | E94: -0.000151830202 | F94: -0.0002052675008 | G94: -0.000276903041 | H94: -0.0003745443037 | I94: -0.0005111520187
A95: Unison Networks | C95: 0 | D95: 0.005344026349 | E95: 0.003505773411 | F95: 0.001636134646 | G95: -0.0003053278146 | H95: -0.002328952184 | I95: -0.004446335929

Sheet alp
A1: Template: Information required for the calculation of depreciation of existing assets | H1: alp | I1: 5016164
A2: See the "TOC & Instructions" tab for instructions on completing this template
A4: for the disclosure year ending 31 March | B4: 2024 $'000 | C4: 2025 $'000 | D4: 2026 $'000 | E4: 2027 $'000 | F4: 2028 $'000 | G4: 2029 $'000 | H4: 2030 $'000
A5: Forecast aggregate opening RAB value for existing assets | B5: 293278.3873 | C5: =B9 -> 291903.4761 | D5: =C9 -> 286564.6583 | E5: 279394.6811 | F5: 272197.7758 | G5: 264802.3002 | H5: 257494.1414
A6: Forecast sum of depreciation for existing assets | B6: 12511.48991 | C6: 12913.30827 | D6: 12881.2703 | E6: 12762.79896 | F6: 12823.43111 | G6: 12594.20481 | H6: 11993.19374
A7: Forecast revaluation for existing assets* | B7: =B5*B13 -> 11144.57872 | C7: =C5*C13 -> 7589.49038 | D7: 5731.293165 | E7: 5587.893622 | F7: 5443.955516 | G7: 5296.046004 | H7: 5149.882827
A8: Forecast aggregate value of disposed assets | B8: 8 | C8: 15 | D8: 20 | E8: 22 | F8: 16 | G8: 10 | H8: 7
A9: Forecast aggregate closing RAB value for existing assets | B9: =B5-B6+B7-B8 -> 291903.4761 | C9: 286564.6583 | D9: 279394.6811 | E9: 272197.7758 | F9: 264802.3002 | G9: 257494.1414 | H9: 250643.8305
A11: * for the purpose of calculating forecast revaluation for existing assets, use the following revaluation rate
B12: 2024 | C12: 2025 | D12: 2026 | E12: 2027 | F12: 2028 | G12: 2029 | H12: 2030
A13: Revaluation rate | B13: 0.038 | C13: 0.026 | D13: 0.02 | E13: 0.02 | F13: 0.02 | G13: 0.02 | H13: 0.02
A15: If your EDB is unable to provide any of the information requested in rows 5 to 8 of this template, please provide reasons in the space below:
A16: Alpine Energy Limited (Alpine/ we) notes that the table above does not allow for assets commissioned to be added for the disclosure year ending 31 March 2024. The implications of this not being included in the table are: - The forecast aggregate closing RAB for the existing assets (line 9, column B) will be understated due to commissioned assets for the disclosure year 2024 not being added. The opening balance will represent the closing balance as at 31 March 2023 and the depreciation and revaluations will be based on this opening balance. (As defined: "Existing assets means assets of an EDB for which an aggregate closing RAB value for existing assets is calculated for the base year"; and base year being "Disclosure year 2024"). - The aggregate opening value of existing assets (line 5, columns C - H), forecast sum of depreciation (line 6, columns C - H), forecast revaluation of existing assets (line 7, columns C - H) and forecast aggregate closing RAB values for existing assets (line 9, columns C - H) will all be understated as it does not take into account the assets commissioned for the disclosure year ended 31 March 2024. - The information we have provides above is therefore based on all assets commissioned up to 31 March 2023. We are in the process of closing our capitalisation processes for the year ended 31 March 2024 and we expect to have assets commissioned in excess of $20 million. This will significantly impact the depreciation and revaluations values for 2025 onwards. - We urge the Commerce Commission to advise how the assets commissioned for the disclosure year ended 31 March 2024 will be considered in the draft decision.

Sheet aur
A1: Template: Information required for the calculation of depreciation of existing assets | H1: aur | I1: 5016181
A2: See the "TOC & Instructions" tab for instructions on completing this template
A4: for the disclosure year ending 31 March | B4: 2024 | C4: 2025 | D4: 2026 | E4: 2027 | F4: 2028 | G4: 2029 | H4: 2030
A5: Forecast aggregate opening RAB value for existing assets | B5: 736087850.6 | C5: =B9 -> 731990567.8 | D5: =C9 -> 719228275.5 | E5: 702318418.7 | F5: 685517753.4 | G5: 668633939.7 | H5: 651434948.9
A6: Forecast sum of depreciation for existing assets | B6: 29095245.76 | C6: 28783493.99 | D6: 28350456.27 | E6: 27842922.02 | F6: 27462200.18 | G6: 27322138.33 | H6: 27412441.64
A7: Forecast revaluation for existing assets* | B7: 27740963.01 | C7: 18878701.61 | D7: 14269599.5 | E7: 13940256.78 | F7: 13600386.47 | G7: 13266647.54 | H7: 12916762.84
A8: Forecast aggregate value of disposed assets | B8: 2743000 | C8: 2857500 | D8: 2829000 | E8: 2898000 | F8: 3022000 | G8: 3143500 | H8: 3162000
A9: Forecast aggregate closing RAB value for existing assets | B9: =B5-B6+B7-B8 -> 731990567.8 | C9: 719228275.5 | D9: 702318418.7 | E9: 685517753.4 | F9: 668633939.7 | G9: 651434948.9 | H9: 633777270.1
A11: * for the purpose of calculating forecast revaluation for existing assets, use the following revaluation rate
B12: 2024 | C12: 2025 | D12: 2026 | E12: 2027 | F12: 2028 | G12: 2029 | H12: 2030
A13: Revaluation rate | B13: 0.038 | C13: 0.026 | D13: 0.02 | E13: 0.02 | F13: 0.02 | G13: 0.02 | H13: 0.02
A15: If your EDB is unable to provide any of the information requested in rows 5 to 8 of this template, please provide reasons in the space below:
A16: Please note these are forecast figures derived from assumed asset disposals through the DPP4 period. At the time of preparing this information request we were yet to calculate the assset disposals figure for RY24.

Sheet ean
A1: Template: Information required for the calculation of depreciation of existing assets | H1: ean | I1: 5016228
A2: See the "TOC & Instructions" tab for instructions on completing this template
A4: for the disclosure year ending 31 March | B4: 2024 | C4: 2025 | D4: 2026 | E4: 2027 | F4: 2028 | G4: 2029 | H4: 2030
A5: Forecast aggregate opening RAB value for existing assets | B5: 343290 | C5: =B9 -> 342810.4282 | D5: 337993.3466 | E5: 330895.0147 | F5: 323674.2733 | G5: 316175.5008 | H5: 308413.8115
A6: Forecast sum of depreciation for existing assets | B6: 12661.20484 | C6: 12923.41243 | D6: 13144.5649 | E6: 13195.49007 | F6: 13303.42865 | G6: 13399.34766 | H6: 13547.10243
A7: Forecast revaluation for existing assets* | B7: 12943.63303 | C7: 8866.130872 | D7: 6738.992987 | E7: 6610.860614 | F7: 6479.190588 | G7: 6342.699636 | H7: 6201.586055
A8: Forecast aggregate value of disposed assets | B8: =(773+1095+976+444+522)/5 -> 762 | C8: =(1095+976+444+522+B8)/5 -> 759.8 | D8: =(976+444+522+B8+C8)/5 -> 692.76 | E8: =(444+522+B8+C8+D8)/5 -> 636.112 | F8: =(522+B8+C8+D8+E8)/5 -> 674.5344 | G8: =(B8+C8+D8+E8+F8)/5 -> 705.04128 | H8: =(C8+D8+E8+F8+G8)/5 -> 693.649536
A9: Forecast aggregate closing RAB value for existing assets | B9: =B5-B6+B7-B8 -> 342810.4282 | C9: 337993.3466 | D9: 330895.0147 | E9: 323674.2733 | F9: 316175.5008 | G9: 308413.8115 | H9: 300374.6456
A11: * for the purpose of calculating forecast revaluation for existing assets, use the following revaluation rate
B12: 2024 | C12: 2025 | D12: 2026 | E12: 2027 | F12: 2028 | G12: 2029 | H12: 2030
A13: Revaluation rate | B13: 0.038 | C13: 0.026 | D13: 0.02 | E13: 0.02 | F13: 0.02 | G13: 0.02 | H13: 0.02
A15: If your EDB is unable to provide any of the information requested in rows 5 to 8 of this template, please provide reasons in the space below:

Sheet inv
A1: EIL: Information required for the calculation of depreciation of existing assets | H1: inv
A4: for the year ending 31 March | B4: 2024 | C4: 2025 | D4: 2026 | E4: 2027 | F4: 2028 | G4: 2029 | H4: 2030
A5: Forecast aggregate opening RAB value for existing assets | B5: 107300133.2 | C5: 114818029.5 | D5: 122110220.4 | E5: 126784154.7 | F5: 133488144.5 | G5: 140315309.1 | H5: 145287962.7
A6: Forecast sum of depreciation for existing assets | B6: 4024266.624 | C6: 4306223.582 | D6: 4579715.509 | E6: 4755010.333 | F6: 5006441.915 | G6: 5262493.142 | H6: 5448991.362
A7: Forecast aggregate value of disposed assets | B7: 100000 | C7: 100000 | D7: 100000 | E7: 100000 | F7: 100000 | G7: 100000 | H7: 100000
A8: Forecast depreciation on disposed assets | B8: =B7*2% -> 2000 | C8: 2000 | D8: 2000 | E8: 2000 | F8: 2000 | G8: 2000 | H8: 2000
A9: Forecast revaluation for existing assets | B9: 6438007.994 | C9: 4707539.21 | D9: 3052755.509 | E9: 2789251.403 | F9: 2669762.889 | G9: 2806306.182 | H9: 2905759.254
A14: Implicit reval rate | B14: =B9/B5 -> 0.06 | C14: =C9/C5 -> 0.041 | D14: =D9/D5 -> 0.025 | E14: =E9/E5 -> 0.022 | F14: =F9/F5 -> 0.02 | G14: 0.02 | H14: 0.02

Sheet fln
A1: Template: Information required for the calculation of depreciation of existing assets | H1: fln | I1: 5013797
A2: See the "TOC & Instructions" tab for instructions on completing this template
A4: for the disclosure year ending 31 March | B4: 2024 | C4: 2025 | D4: 2026 | E4: 2027 | F4: 2028 | G4: 2029 | H4: 2030
A5: Forecast aggregate opening RAB value for existing assets | B5: 209446391.4 | C5: =B9 -> 209127455.1 | D5: =C9 -> 205962402.2 | E5: 201246858.5 | F5: 196253221.1 | G5: 190971569.2 | H5: 185391559.3
A6: Forecast sum of depreciation for existing assets | B6: 8255884.302 | C6: 8582356.574 | D6: 8814783.946 | E6: 8998566.741 | F6: 9186708.522 | G6: 9379433.429 | H6: 9577034.947
A7: Forecast revaluation for existing assets* | B7: 7958948 | C7: 5437303.656 | D7: 4119240.216 | E7: 4024929.341 | F7: 3925056.593 | G7: 3819423.554 | H7: 3707823.357
A8: Forecast aggregate value of disposed assets | B8: 22000 | C8: 20000 | D8: 20000 | E8: 20000 | F8: 20000 | G8: 20000 | H8: 20000
A9: Forecast aggregate closing RAB value for existing assets | B9: =B5-B6+B7-B8 -> 209127455.1 | C9: 205962402.2 | D9: 201246858.5 | E9: 196253221.1 | F9: 190971569.2 | G9: 185391559.3 | H9: 179502347.7
A11: * for the purpose of calculating forecast revaluation for existing assets, use the following revaluation rate
B12: 2024 | C12: 2025 | D12: 2026 | E12: 2027 | F12: 2028 | G12: 2029 | H12: 2030
A13: Revaluation rate | B13: 0.038 | C13: 0.026 | D13: 0.02 | E13: 0.02 | F13: 0.02 | G13: 0.02 | H13: 0.02
A15: If your EDB is unable to provide any of the information requested in rows 5 to 8 of this template, please provide reasons in the space below:

Sheet hor
A1: Template: Information required for the calculation of depreciation of existing assets | H1: hor | I1: 5016145
A2: See the "TOC & Instructions" tab for instructions on completing this template
A4: for the disclosure year ending 31 March | B4: 2024 | C4: 2025 | D4: 2026 | E4: 2027 | F4: 2028 | G4: 2029 | H4: 2030
A5: Forecast aggregate opening RAB value for existing assets | B5: 161216 | C5: =B9 -> 159335.283 | D5: =C9 -> 155370.124 | E5: 150466.552 | F5: 145641.211 | G5: 140858.41 | H5: 136224.939
A6: Forecast sum of depreciation for existing assets | B6: 7501.427 | C6: 7613.635 | D6: 7531.518 | E6: 7372.742 | F6: 7246.0146 | G6: 7017.826 | H6: 6927.9824
A7: Forecast revaluation for existing assets* | B7: 6103.737 | C7: 4125.885 | D7: 3093.356 | E7: 2998.058 | F7: 2899.4426 | G7: 2806.27497 | H7: 2715.154
A8: Forecast aggregate value of disposed assets | B8: 483.027 | C8: 477.409 | D8: 465.41 | E8: 450.657 | F8: 436.229 | G8: 421.92 | H8: 408.0106
A9: Forecast aggregate closing RAB value for existing assets | B9: =B5-B6+B7-B8 -> 159335.283 | C9: 155370.124 | D9: 150466.552 | E9: 145641.211 | F9: 140858.41 | G9: 136224.939 | H9: 131604.1
A11: * for the purpose of calculating forecast revaluation for existing assets, use the following revaluation rate
B12: 2024 | C12: 2025 | D12: 2026 | E12: 2027 | F12: 2028 | G12: 2029 | H12: 2030
A13: Revaluation rate | B13: 0.038 | C13: 0.026 | D13: 0.02 | E13: 0.02 | F13: 0.02 | G13: 0.02 | H13: 0.02
A15: If your EDB is unable to provide any of the information requested in rows 5 to 8 of this template, please provide reasons in the space below:

Sheet nel
A1: Template: Information required for the calculation of depreciation of existing assets | H1: nel | I1: 5016152
A2: See the "TOC & Instructions" tab for instructions on completing this template
A4: for the disclosure year ending 31 March | B4: 2024 | C4: 2025 | D4: 2026 | E4: 2027 | F4: 2028 | G4: 2029 | H4: 2030
A5: Forecast aggregate opening RAB value for existing assets | B5: 49284.292 | C5: =B9 -> 49517.98294 | D5: =C9 -> 49080.59286 | E5: 48354.74726 | F5: 47682.51967 | G5: 47028.18466 | H5: 46364.75219
A6: Forecast sum of depreciation for existing assets | B6: 1736.96816 | C6: 1724.857636 | D6: 1707.457458 | E6: 1639.322536 | F6: 1607.985394 | G6: 1603.996163 | H6: 1598.364493
A7: Forecast revaluation for existing assets* | B7: =B13*B5 -> 1872.803096 | C7: =C13*C5 -> 1287.467556 | D7: 981.6118571 | E7: 967.0949451 | F7: 953.6503933 | G7: 940.5636933 | H7: 927.2950439
A8: Forecast aggregate value of disposed assets | B8: -97.856
A9: Forecast aggregate closing RAB value for existing assets | B9: =B5-B6+B7-B8 -> 49517.98294 | C9: 49080.59286 | D9: 48354.74726 | E9: 47682.51967 | F9: 47028.18466 | G9: 46364.75219 | H9: 45693.68275
A11: * for the purpose of calculating forecast revaluation for existing assets, use the following revaluation rate
B12: 2024 | C12: 2025 | D12: 2026 | E12: 2027 | F12: 2028 | G12: 2029 | H12: 2030
A13: Revaluation rate | B13: 0.038 | C13: 0.026 | D13: 0.02 | E13: 0.02 | F13: 0.02 | G13: 0.02 | H13: 0.02
A15: If your EDB is unable to provide any of the information requested in rows 5 to 8 of this template, please provide reasons in the space below:

Sheet tas
A1: Template: Information required for the calculation of depreciation of existing assets | H1: tas | I1: 5016157
A2: See the "TOC & Instructions" tab for instructions on completing this template
A4: for the disclosure year ending 31 March | B4: 2024 | C4: 2025 | D4: 2026 | E4: 2027 | F4: 2028 | G4: 2029 | H4: 2030
A5: Forecast aggregate opening RAB value for existing assets | B5: 209789 | C5: =B9 -> 208606.2 | D5: =C9 -> 206002.5 | E5: 202144.9 | F5: 199191.4 | G5: 196337.8 | H5: 193456.3
A6: Forecast sum of depreciation for existing assets | B6: 8269.1 | C6: 7993.1 | D6: 7568.5 | E6: 6711.2 | F6: 6579.9 | G6: 6578.3 | H6: 6654.4
A7: Forecast revaluation for existing assets* | B7: 7926.8 | C7: 5421 | D7: 4099.8 | E7: 4039.7 | F7: 3980.3 | G7: 3925.5 | H7: 3863.4
A8: Forecast aggregate value of disposed assets | B8: 840.5 | C8: 31.6 | D8: 388.9 | E8: 282 | F8: 254 | G8: 228.7 | H8: 205.9
A9: Forecast aggregate closing RAB value for existing assets | B9: =B5-B6+B7-B8 -> 208606.2 | C9: 206002.5 | D9: 202144.9 | E9: 199191.4 | F9: 196337.8 | G9: 193456.3 | H9: 190459.4
A11: * for the purpose of calculating forecast revaluation for existing assets, use the following revaluation rate
B12: 2024 | C12: 2025 | D12: 2026 | E12: 2027 | F12: 2028 | G12: 2029 | H12: 2030
A13: Revaluation rate | B13: 0.038 | C13: 0.026 | D13: 0.02 | E13: 0.02 | F13: 0.02 | G13: 0.02 | H13: 0.02
A15: If your EDB is unable to provide any of the information requested in rows 5 to 8 of this template, please provide reasons in the space below:

Sheet ojv
A1: DRAFT Template: Information required for the calculation of depreciation of existing assets DRAFT | H1: ojv | I1: 5016241
A4: for the year ending 31 March | B4: 2024 | C4: 2025 | D4: 2026 | E4: 2027 | F4: 2028 | G4: 2029 | H4: 2030
A5: Forecast aggregate opening RAB value for existing assets | B5: 263617441 | C5: 287888739 | D5: 302185872 | E5: 321872304 | F5: 346155488 | G5: 369806445 | H5: 394108772
A6: Forecast sum of depreciation for existing assets | B6: 10772948 | C6: 11774649 | D6: 12359402 | E6: 13164577 | F6: 14157759 | G6: 15125084 | H6: 16119049
A7: Forecast aggregate value of disposed assets | B7: 98183 | C7: 98183 | D7: 98183 | E7: 98183 | F7: 98183 | G7: 98183 | H7: 98183
A8: Forecast depreciation on disposed assets | B8: =SUM(B7*2%) -> 1963.66 | C8: 1963.66 | D8: 1963.66 | E8: 1963.66 | F8: 1963.66 | G8: 1963.66 | H8: 1963.66
A9: Forecast revaluation for existing assets | B9: 15817046 | C9: 11803438 | D9: 7554647 | E9: 7081191 | F9: 6923110 | G9: 7396129 | H9: 7882175
A14: Implicit reval rate | B14: =B9/B5 -> 0.05999999826 | C14: =C9/C5 -> 0.04099999896 | D14: 0.02500000066 | E14: 0.02200000097

Sheet ori
A1: Template: Information required for the calculation of depreciation of existing assets | H1: ori | I1: 5016105
A2: See the "TOC & Instructions" tab for instructions on completing this template
A4: for the disclosure year ending 31 March | B4: 2024 | C4: 2025 | D4: 2026 | E4: 2027 | F4: 2028 | G4: 2029 | H4: 2030
A5: Forecast aggregate opening RAB value for existing assets | B5: 1450079000 | C5: =B9 -> 1448825000 | D5: =C9 -> 1430617000 | E5: 1403103000 | F5: 1376178000 | G5: 1349104000 | H5: 1322157000
A6: Forecast sum of depreciation for existing assets | B6: 55550000 | C6: 54993000 | D6: 55494000 | E6: 54255000 | F6: 53652000 | G6: 52980000 | H6: 52726000
A7: Forecast revaluation for existing assets* | B7: 55043000 | C7: 37612000 | D7: 28573000 | E7: 28021000 | F7: 27479000 | G7: 26938000 | H7: 26400000
A8: Forecast aggregate value of disposed assets | B8: 747000 | C8: 827000 | D8: 593000 | E8: 691000 | F8: 901000 | G8: 905000 | H8: 883000
A9: Forecast aggregate closing RAB value for existing assets | B9: =B5-B6+B7-B8 -> 1448825000 | C9: 1430617000 | D9: 1403103000 | E9: 1376178000 | F9: 1349104000 | G9: 1322157000 | H9: 1294948000
A11: * for the purpose of calculating forecast revaluation for existing assets, use the following revaluation rate
B12: 2024 | C12: 2025 | D12: 2026 | E12: 2027 | F12: 2028 | G12: 2029 | H12: 2030
A13: Revaluation rate | B13: 0.038 | C13: 0.026 | D13: 0.02 | E13: 0.02 | F13: 0.02 | G13: 0.02 | H13: 0.02
A15: If your EDB is unable to provide any of the information requested in rows 5 to 8 of this template, please provide reasons in the space below:

Sheet pco
A1: Template: Information required for the calculation of depreciation of existing assets
A2: See the "TOC & Instructions" tab for instructions on completing this template
A4: for the disclosure year ending 31 March | B4: 2024 | C4: 2025 | D4: 2026 | E4: 2027 | F4: 2028 | G4: 2029 | H4: 2030
A5: Forecast aggregate opening RAB value for existing assets | B5: 2589536807 | C5: =B9 -> 2548669982 | D5: =C9 -> 2484753123 | E5: 2411843524 | F5: 2341678562 | G5: 2274084613 | H5: 2207662586
A6: Forecast sum of depreciation for existing assets | B6: 116537921.3 | C6: 106894272.1 | D6: 99537671.21 | E6: 95334841.46 | F6: 91360528.96 | G6: 88836728.1 | H6: 86929591.81
A7: Forecast revaluation for existing assets* | B7: 97040528.94 | C7: 65307686.89 | D7: 48958345.05 | E7: 47500153.06 | F7: 46096853.82 | G7: 44744974.84 | H7: 43416534.31
A8: Forecast aggregate value of disposed assets | B8: 21369432.94 | C8: 22330273.52 | D8: 22330273.52 | E8: 22330273.52 | F8: 22330273.52 | G8: 22330273.52 | H8: 22330273.52
A9: Forecast aggregate closing RAB value for existing assets | B9: =B5-B6+B7-B8 -> 2548669982 | C9: 2484753123 | D9: 2411843524 | E9: 2341678562 | F9: 2274084613 | G9: 2207662586 | H9: 2141819255
A11: * for the purpose of calculating forecast revaluation for existing assets, use the following revaluation rate
B12: 2024 | C12: 2025 | D12: 2026 | E12: 2027 | F12: 2028 | G12: 2029 | H12: 2030
A13: Revaluation rate | B13: 0.038 | C13: 0.026 | D13: 0.02 | E13: 0.02 | F13: 0.02 | G13: 0.02 | H13: 0.02
A15: If your EDB is unable to provide any of the information requested in rows 5 to 8 of this template, please provide reasons in the space below:

Sheet tlc
A1: Template: Information required for the calculation of depreciation of existing assets | H1: tlc | I1: 5016125
A2: See the "TOC & Instructions" tab for instructions on completing this template
A4: for the disclosure year ending 31 March | B4: 2024 | C4: 2025 | D4: 2026 | E4: 2027 | F4: 2028 | G4: 2029 | H4: 2030
A5: Forecast aggregate opening RAB value for existing assets | B5: 263264167.4 | C5: =B9 -> 262751848.6 | D5: =C9 -> 258670113 | E5: 252650869.6 | F5: 246292863.8 | G5: 239584785.4 | H5: 232514986.9
A6: Forecast sum of depreciation for existing assets | B6: 10280214.27 | C6: =C5/($B$31+C32) -> 10677140.87 | D6: =D5/($B$31+D32) -> 10956502.77 | E6: 11174880.34 | F6: 11397792.76 | G6: 11625351.36 | H6: 11857672.97
A7: Forecast revaluation for existing assets* | B7: =B5*B13 -> 10004038.36 | C7: =C5*C13 -> 6831548.064 | D7: 5173402.259 | E7: 5053017.392 | F7: 4925857.276 | G7: 4791695.709 | H7: 4650299.739
A8: Forecast aggregate value of disposed assets | B8: 236142.8571 | C8: 236142.8571 | D8: 236142.8571 | E8: 236142.8571 | F8: 236142.8571 | G8: 236142.8571 | H8: 236142.8571
A9: Forecast aggregate closing RAB value for existing assets | B9: =B5-B6+B7-B8 -> 262751848.6 | C9: 258670113 | D9: 252650869.6 | E9: 246292863.8 | F9: 239584785.4 | G9: 232514986.9 | H9: 225071470.9
A11: * for the purpose of calculating forecast revaluation for existing assets, use the following revaluation rate
B12: 2024 | C12: 2025 | D12: 2026 | E12: 2027 | F12: 2028 | G12: 2029 | H12: 2030
A13: Revaluation rate | B13: 0.038 | C13: 0.026 | D13: 0.02 | E13: 0.02 | F13: 0.02 | G13: 0.02 | H13: 0.02
A15: If your EDB is unable to provide any of the information requested in rows 5 to 8 of this template, please provide reasons in the space below:
A16: Commentary: we believe we have completed this workbook correctly - the formulae remain in place so that the Commission can verify.
A29: Forecast aggregate opening RAB value for existing assets | B29: =B5 -> 263264167.4
A30: Forecast sum of depreciation for existing assets | B30: =B6 -> 10280214.27
A31: Forecast aggregate opening RAB value for existing assets / Forecast sum of depreciation for existing assets | B31: =B29/B30 -> 25.60882102
A32: Year | B32: base | C32: -1 | D32: -2 | E32: -3 | F32: -4 | G32: -5 | H32: -6

Sheet top
A1: Template: Information required for the calculation of depreciation of existing assets | H1: top | I1: 5012753
A2: See the "TOC & Instructions" tab for instructions on completing this template
A4: for the disclosure year ending 31 March | B4: 2024 | C4: 2025 | D4: 2026 | E4: 2027 | F4: 2028 | G4: 2029 | H4: 2030
A5: Forecast aggregate opening RAB value for existing assets | B5: 339120862.3 | C5: =B9 -> 338649448.6 | D5: =C9 -> 334697835 | E5: 328574900.7 | F5: 322598589 | G5: 316538323.3 | H5: 310245398.9
A6: Forecast sum of depreciation for existing assets | B6: 13329336.87 | C6: 12746212.95 | D6: 12804431.98 | E6: 12540291.41 | F6: 12507975.64 | G6: 12619390.72 | H6: 12702893.13
A7: Forecast revaluation for existing assets* | B7: 12858923.19 | C7: 8795599.339 | D7: 6682497.715 | E7: 6564979.732 | F7: 6448709.868 | G7: 6327466.356 | H7: 6203595.056
A8: Forecast aggregate value of disposed assets | B8: 1000 | C8: 1000 | D8: 1000 | E8: 1000 | F8: 1000 | G8: 1000 | H8: 1000
A9: Forecast aggregate closing RAB value for existing assets | B9: =B5-B6+B7-B8 -> 338649448.6 | C9: 334697835 | D9: 328574900.7 | E9: 322598589 | F9: 316538323.3 | G9: 310245398.9 | H9: 303745100.8
A11: * for the purpose of calculating forecast revaluation for existing assets, use the following revaluation rate
B12: 2024 | C12: 2025 | D12: 2026 | E12: 2027 | F12: 2028 | G12: 2029 | H12: 2030
A13: Revaluation rate | B13: 0.038 | C13: 0.026 | D13: 0.02 | E13: 0.02 | F13: 0.02 | G13: 0.02 | H13: 0.02
A15: If your EDB is unable to provide any of the information requested in rows 5 to 8 of this template, please provide reasons in the space below:

Sheet uni
A1: Template: Information required for the calculation of depreciation of existing assets | H1: uni | I1: 5013907
A2: See the "TOC & Instructions" tab for instructions on completing this template
A4: for the disclosure year ending 31 March | B4: 2024 | C4: 2025 | D4: 2026 | E4: 2027 | F4: 2028 | G4: 2029 | H4: 2030
A5: Forecast aggregate opening RAB value for existing assets | B5: 805808 | C5: =B9 -> 796589.572 | D5: =C9 -> 777492.5086 | E5: 752167.9914 | F5: 725477.6197 | G5: 697374.6318 | H5: 667811.248 | I5: $000
A6: Forecast sum of depreciation for existing assets | B6: 37213.51133 | C6: 38351.28093 | D6: 39402.19144 | E6: 40233.43609 | F6: 41083.07353 | G6: 41951.67266 | H6: 42839.85237 | I6: $000
A7: Forecast revaluation for existing assets* | B7: =(B5*0.999+(-B8))*B13 -> 30495.0833 | C7: =(C5*0.999+(-C8))*C13 -> 20654.21754 | D7: 15505.73903 | E7: 14999.19388 | F7: 14465.3378 | G7: 13903.246 | H7: 13311.96361 | I7: $000
A8: Forecast aggregate value of disposed assets | B8: 2500 | C8: 1400 | D8: 1428.064765 | E8: 1456.12953 | F8: 1485.25212 | G8: 1514.957163 | H8: 1545.256306 | I8: $000
A9: Forecast aggregate closing RAB value for existing assets | B9: =B5-B6+B7-B8 -> 796589.572 | C9: =C5-C6+C7-C8 -> 777492.5086 | D9: 752167.9914 | E9: 725477.6197 | F9: 697374.6318 | G9: 667811.248 | H9: 636738.1029 | I9: $000
A11: * for the purpose of calculating forecast revaluation for existing assets, use the following revaluation rate
B12: 2024 | C12: 2025 | D12: 2026 | E12: 2027 | F12: 2028 | G12: 2029 | H12: 2030
A13: Revaluation rate | B13: 0.038 | C13: 0.026 | D13: 0.02 | E13: 0.02 | F13: 0.02 | G13: 0.02 | H13: 0.02
A15: If your EDB is unable to provide any of the information requested in rows 5 to 8 of this template, please provide reasons in the space below:
A16: Not applicable, all information is provided

Sheet vct
A1: Template: Information required for the calculation of depreciation of existing assets
A2: See the "TOC & Instructions" tab for instructions on completing this template
A4: for the disclosure year ending 31 March | B4: 2024 | C4: 2025 | D4: 2026 | E4: 2027 | F4: 2028 | G4: 2029 | H4: 2030
A5: Forecast aggregate opening RAB value for existing assets | B5: 3891832614 | C5: =B10 -> 3874339152 | D5: =C10 -> 3810306715 | E5: 3726433143 | F5: 3645766663 | G5: 3565129108 | H5: 3483167089
A6: Forecast sum of depreciation for existing assets | B6: -155628634.1 | C6: -153610600.2 | D6: -149027073.3 | E6: -144211863.9 | F6: -142585880.6 | G6: -142303824.3 | H6: -140711739.9
A7: Forecast revaluation for existing assets* | B7: 147258899.5 | C7: 100282178.7 | D7: 75857476.74 | E7: 74249368.8 | F7: 72652313.95 | G7: 71045801.33 | H7: 69394551.14
A8: Forecast aggregate value of disposed assets | B8: -10703982.14 | C8: -10704015.11 | D8: -10703975.95 | E8: -10703984.44 | F8: -10703988.2 | G8: -10703996.13 | H8: -10703982.74
A9: Forecast aggregated value of allocation adjustments | B9: 1580254.015
A10: Forecast aggregate closing RAB value for existing assets | B10: =SUM(B5:B9) -> 3874339152 | C10: =SUM(C5:C8) -> 3810306715 | D10: 3726433143 | E10: 3645766663 | F10: 3565129108 | G10: 3483167089 | H10: 3401145918
A12: * for the purpose of calculating forecast revaluation for existing assets, use the following revaluation rate
B13: 2024 | C13: 2025 | D13: 2026 | E13: 2027 | F13: 2028 | G13: 2029 | H13: 2030
A14: Revaluation rate | B14: 0.038 | C14: 0.026 | D14: 0.02 | E14: 0.02 | F14: 0.02 | G14: 0.02 | H14: 0.02
B15: =B5/B6 -> -25.00717582 | C15: =C5/C6 -> -25.22182158 | D15: -25.56788261 | E15: -25.83999014 | F15: -25.56891782 | G15: -25.05293955 | H15: -24.75391956
A16: If your EDB is unable to provide any of the information requested in rows 5 to 8 of this template, please provide reasons in the space below:

Sheet wel
A1: Template: Information required for the calculation of depreciation of existing assets | H1: wel | I1: 5016218
A2: See the "TOC & Instructions" tab for instructions on completing this template
A4: for the disclosure year ending 31 March | B4: 2024 | C4: 2025 | D4: 2026 | E4: 2027 | F4: 2028 | G4: 2029 | H4: 2030
A5: Forecast aggregate opening RAB value for existing assets | B5: 803430166.2 | C5: =B9 -> 801567181.8 | D5: 790600307.8 | E5: 774499538.1 | F5: 759951852.7 | G5: 745423724.9 | H5: 730769102.5
A6: Forecast sum of depreciation for existing assets | B6: 32362800.35 | C6: 31786779.95 | D6: 31896963.83 | E6: 30022186.15 | F6: 29711965.84 | G6: 29548188.49 | H6: 29379130.78
A7: Forecast revaluation for existing assets* | B7: =(B5*0.999)*B13 -> 30499815.97 | C7: 20819905.98 | D7: 15796194.15 | E7: 15474500.77 | F7: 15183838.02 | G7: 14893566.02 | H7: 14600766.67
A8: Forecast aggregate value of disposed assets | B8: 0 | C8: 0 | D8: 0 | E8: 0 | F8: 0 | G8: 0 | H8: 0
A9: Forecast aggregate closing RAB value for existing assets | B9: =B5-B6+B7-B8 -> 801567181.8 | C9: 790600307.8 | D9: 774499538.1 | E9: 759951852.7 | F9: 745423724.9 | G9: 730769102.5 | H9: 715990738.3
A11: * for the purpose of calculating forecast revaluation for existing assets, use the following revaluation rate
B12: 2024 | C12: 2025 | D12: 2026 | E12: 2027 | F12: 2028 | G12: 2029 | H12: 2030
A13: Revaluation rate | B13: 0.038 | C13: 0.026 | D13: 0.02 | E13: 0.02 | F13: 0.02 | G13: 0.02 | H13: 0.02
A15: If your EDB is unable to provide any of the information requested in rows 5 to 8 of this template, please provide reasons in the space below:
A16: We note that the revaluation for the depreciation calculation is at an asset level, while the RAB revaluation (as per IM clause 4.2.3(2)(a)) is at an aggregated RAB level. The sum of the asset-level revaluations is different to the RAB-level revaluations. The difference isn't material but the calculation methods are inconsistent.
